Workbook

Sheet basis
B2: ORGANISCHE STOFBALANS
B5: basisgegevens
B8: Naam:
B9: Adres:
B10: Postcode + Woonplaats
B13: Naam perceel
B15: Organische stofpercentage van het perceel (gemiddeld) | D15: %
C17: verder>>
D48: organische stofbalans (1/7)

Sheet aanvoer gewas
A2: ORGANISCHE STOFBALANS
B4: aanvoer gewasresten
B6: vul een volledige rotatie in
C7: Jaar aflopend sorteren
B9: jaar | C9: gewas | D9: gewasaanvoer (kg per ha) | E9: beschikbare N (kg per ha) | G9: =IF(COUNTIF(E10:E19,"!")>0,"Let op!","") -> 
B10: 2012 | D10: =IF(C10="","",VLOOKUP(C10,tabellen!E$3:G$197,2)) ->  | E10: =IF(tabellen!AD1=FALSE,IF(C10="","",IF(C11="",VLOOKUP(C10,tabellen!E$3:G$197,3),IF(C12="",VLOOKUP(C11,tabellen!E$3:G$197,3),IF(C13="",VLOOKUP(C12,tabellen!E$3:G$197,3),IF(C14="",VLOOKUP(C13,tabellen!E$3:G$197,3),IF(C15="",VLOOKUP(C14,tabellen!E$3:G$197,3),IF(C16="",VLOOKUP(C15,tabellen!E$3:G$197,3),IF(C17="",VLOOKUP(C16,tabellen!E$3:G$197,3),IF(C18="",VLOOKUP(C17,tabellen!E$3:G$197,3),IF(C19="",VLOOKUP(C18,tabellen!E$3:G$197,3),IF(C19<>"",VLOOKUP(C19,tabellen!E$3:G$197,3),0))))))))))),IF(C11="",IF(C10="",0,VLOOKUP(C10,tabellen!E$3:G$197,3)),IF(C11="",0,VLOOKUP(C11,tabellen!E$3:G$197,3)))) -> 0 | F10: =IF(LEFT(C9,8)="Grasland","!","") ->  | G10: =IF(COUNTIF(F10:F19,"!")>0,"Vul 'grasland inzaai najaar' in bij aanvoer groenbemesters.","") -> 
B11: =IF(tabellen!AD$1=TRUE,'aanvoer gewas'!B10-1,B10+1) -> 2011 | D11: =IF(C11="","",VLOOKUP(C11,tabellen!E$3:F$197,2)) ->  | E11: =IF(C11="","",IF(tabellen!AD$1=FALSE,IF(C10="","",VLOOKUP(C10,tabellen!E$3:G$197,3)),IF(C12="",VLOOKUP(C$10,tabellen!E$3:G$197,3),VLOOKUP(C12,tabellen!E$3:G$197,3)))) ->  | F11: =IF(LEFT(C10,8)="Grasland","!","") -> 
B12: =IF(tabellen!AD$1=TRUE,'aanvoer gewas'!B11-1,B11+1) -> 2010 | D12: =IF(C12="","",VLOOKUP(C12,tabellen!E$3:F$197,2)) ->  | E12: =IF(C12="","",IF(tabellen!AD$1=FALSE,IF(C11="","",VLOOKUP(C11,tabellen!E$3:G$197,3)),IF(C13="",VLOOKUP(C$10,tabellen!E$3:G$197,3),VLOOKUP(C13,tabellen!E$3:G$197,3)))) ->  | G12: =IF(COUNTIF(F10:F19,"!")>0,"Let op: kies voor grasland (jaar 1) als het in het voorjaar van dit jaar is ingezaaid. ","") -> 
B13: =IF(tabellen!AD$1=TRUE,'aanvoer gewas'!B12-1,B12+1) -> 2009 | D13: =IF(C13="","",VLOOKUP(C13,tabellen!E$3:F$197,2)) ->  | E13: =IF(C13="","",IF(tabellen!AD$1=FALSE,IF(C12="","",VLOOKUP(C12,tabellen!E$3:G$197,3)),IF(C14="",VLOOKUP(C$10,tabellen!E$3:G$197,3),VLOOKUP(C14,tabellen!E$3:G$197,3)))) -> 
B14: =IF(tabellen!AD$1=TRUE,'aanvoer gewas'!B13-1,B13+1) -> 2008 | D14: =IF(C14="","",VLOOKUP(C14,tabellen!E$3:F$197,2)) ->  | E14: =IF(C14="","",IF(tabellen!AD$1=FALSE,IF(C13="","",VLOOKUP(C13,tabellen!E$3:G$197,3)),IF(C15="",VLOOKUP(C$10,tabellen!E$3:G$197,3),VLOOKUP(C15,tabellen!E$3:G$197,3)))) -> 
B15: =IF(tabellen!AD$1=TRUE,'aanvoer gewas'!B14-1,B14+1) -> 2007 | D15: =IF(C15="","",VLOOKUP(C15,tabellen!E$3:F$197,2)) ->  | E15: =IF(C15="","",IF(tabellen!AD$1=FALSE,IF(C14="","",VLOOKUP(C14,tabellen!E$3:G$197,3)),IF(C16="",VLOOKUP(C$10,tabellen!E$3:G$197,3),VLOOKUP(C16,tabellen!E$3:G$197,3)))) ->  | G15: =IF(COUNTIF(F10:F19,"!")>0,"Kies voor 'Grasland (jaar 2 of ouder)' als er voor 1 januari van dit jaar is ingezaaid.","") -> 
B16: =IF(tabellen!AD$1=TRUE,'aanvoer gewas'!B15-1,B15+1) -> 2006 | D16: =IF(C16="","",VLOOKUP(C16,tabellen!E$3:F$197,2)) ->  | E16: =IF(C16="","",IF(tabellen!AD$1=FALSE,IF(C15="","",VLOOKUP(C15,tabellen!E$3:G$197,3)),IF(C17="",VLOOKUP(C$10,tabellen!E$3:G$197,3),VLOOKUP(C17,tabellen!E$3:G$197,3)))) -> 
B17: =IF(tabellen!AD$1=TRUE,'aanvoer gewas'!B16-1,B16+1) -> 2005 | D17: =IF(C17="","",VLOOKUP(C17,tabellen!E$3:F$197,2)) ->  | E17: =IF(C17="","",IF(tabellen!AD$1=FALSE,IF(C16="","",VLOOKUP(C16,tabellen!E$3:G$197,3)),IF(C18="",VLOOKUP(C$10,tabellen!E$3:G$197,3),VLOOKUP(C18,tabellen!E$3:G$197,3)))) -> 
B18: =IF(tabellen!AD$1=TRUE,'aanvoer gewas'!B17-1,B17+1) -> 2004 | D18: =IF(C18="","",VLOOKUP(C18,tabellen!E$3:F$197,2)) ->  | E18: =IF(C18="","",IF(tabellen!AD$1=FALSE,IF(C17="","",VLOOKUP(C17,tabellen!E$3:G$197,3)),IF(C19="",VLOOKUP(C$10,tabellen!E$3:G$197,3),VLOOKUP(C19,tabellen!E$3:G$197,3)))) -> 
B19: =IF(tabellen!AD$1=TRUE,'aanvoer gewas'!B18-1,B18+1) -> 2003 | D19: =IF(C19="","",VLOOKUP(C19,tabellen!E$3:F$197,2)) ->  | E19: =IF(C19="","",IF(tabellen!AD$1=FALSE,IF(C18="","",VLOOKUP(C18,tabellen!E$3:G$197,3)),IF(C20="",VLOOKUP(C$10,tabellen!E$3:G$197,3),VLOOKUP(C20,tabellen!E$3:G$197,3)))) -> 
C20: gemiddelde jaarlijkse organische stofaanvoer | D20: =AVERAGE(D10:D19) -> 
D23: <<terug | E23: verder>>
E30: organische stofbalans (2/7)

Sheet aanvoer mest
B2: ORGANISCHE STOFBALANS
B4: aanvoer organische mest
D6: organische mest voorjaar | G6: organische mest najaar
B7: jaar | C7: gewas | D7: soort mest | E7: dosering (ton per ha) | F7: N (kg/ton) | G7: soort mest | H7: dosering (ton per ha) | I7: N (kg/ton) | J7: aanvoer eff. org. stof (kg/ha) | K7: beschikbare N (kg/ha)
B8: ='aanvoer gewas'!B10 -> 2012 | C8: =IF('aanvoer gewas'!C10="","",'aanvoer gewas'!C10) ->  | F8: =IF(D8="","",VLOOKUP(D8,tabellen!$I$3:$N$24,4)) ->  | I8: =IF(G8="","",VLOOKUP(G8,tabellen!$I$3:$N$24,4)) ->  | J8: =IF(C8="","",IF(AND(D8="",G8=""),0,IF(G8="",(VLOOKUP(D8,tabellen!I$3:K$24,3)*E8),IF(D8="",(VLOOKUP(G8,tabellen!I$3:K$24,3)*H8),VLOOKUP(D8,tabellen!I$3:K$24,3)*E8+VLOOKUP(G8,tabellen!I$3:K$24,3)*H8)))) ->  | K8: =IF(D8="",IF(tabellen!AD1=FALSE,IF(AND(C8="",G8=""),"",IF(AND(C9="",G8<>""),VLOOKUP(G8,tabellen!I$3:N$24,5)*H8*I8,IF(AND(C10="",G9<>""),VLOOKUP(G9,tabellen!I$3:N$24,5)*H9*I9,IF(AND(C11="",G10<>""),VLOOKUP(G10,tabellen!I$3:N$24,5)*H10*I10,IF(AND(C12="",G11<>""),VLOOKUP(G11,tabellen!I$3:N$24,5)*H11*I11,IF(AND(C13="",G12<>""),VLOOKUP(G12,tabellen!I$3:N$24,5)*H12*I12,IF(AND(C14="",G13<>""),VLOOKUP(G13,tabellen!I$3:N$24,5)*H13*I13,IF(AND(C15="",G14<>""),VLOOKUP(G14,tabellen!I$3:N$24,5)*H14*I14,IF(AND(C16="",G15<>""),VLOOKUP(G15,tabellen!I$3:N$24,5)*H15*I15,IF(AND(C17="",G16<>""),VLOOKUP(G16,tabellen!I$3:N$24,5)*H16*I16,IF(AND(C17<>"",G17<>""),VLOOKUP(G17,tabellen!I$3:N$24,5)*H17*I17,0))))))))))),IF(C9="",IF(G8="",0,VLOOKUP(G8,tabellen!I$3:N$24,5)*H8*I8),IF(G9="",0,VLOOKUP(G9,tabellen!I$3:N$24,5)*H9*I9))),IF(tabellen!AD1=FALSE,IF(AND(C8="",G8=""),"",IF(AND(C9="",G8<>""),VLOOKUP(G8,tabellen!I$3:N$24,5)*H8*I8,IF(AND(C10="",G9<>""),VLOOKUP(G9,tabellen!I$3:N$24,5)*H9*I9,IF(AND(C11="",G10<>""),VLOOKUP(G10,tabellen!I$3:N$24,5)*H10*I10,IF(AND(C12="",G11<>""),VLOOKUP(G11,tabellen!I$3:N$24,5)*H11*I11,IF(AND(C13="",G12<>""),VLOOKUP(G12,tabellen!I$3:N$24,5)*H12*I12,IF(AND(C14="",G13<>""),VLOOKUP(G13,tabellen!I$3:N$24,5)*H13*I13,IF(AND(C15="",G14<>""),VLOOKUP(G14,tabellen!I$3:N$24,5)*H14*I14,IF(AND(C16="",G15<>""),VLOOKUP(G15,tabellen!I$3:N$24,5)*H15*I15,IF(AND(C17="",G16<>""),VLOOKUP(G16,tabellen!I$3:N$24,5)*H16*I16,IF(AND(C17<>"",G17<>""),VLOOKUP(G17,tabellen!I$3:N$24,5)*H17*I17,0))))))))))),IF(C9="",IF(G8="",0,VLOOKUP(G8,tabellen!I$3:N$24,5)*H8*I8),IF(G9="",0,VLOOKUP(G9,tabellen!I$3:N$24,5)*H9*I9)))+IF(D8="","",VLOOKUP(D8,tabellen!I$3:N$24,6)*E8*F8)) -> 0
B9: ='aanvoer gewas'!B11 -> 2011 | C9: =IF('aanvoer gewas'!C11="","",'aanvoer gewas'!C11) ->  | F9: =IF(D9="","",VLOOKUP(D9,tabellen!$I$3:$N$24,4)) ->  | I9: =IF(G9="","",VLOOKUP(G9,tabellen!$I$3:$N$24,4)) ->  | J9: =IF(C9="","",IF(AND(D9="",G9=""),0,IF(G9="",(VLOOKUP(D9,tabellen!I$3:K$24,3)*E9),IF(D9="",(VLOOKUP(G9,tabellen!I$3:K$24,3)*H9),VLOOKUP(D9,tabellen!I$3:K$24,3)*E9+VLOOKUP(G9,tabellen!I$3:K$24,3)*H9)))) ->  | K9: =IF(D9="",IF(C9="","",IF(tabellen!AD$1=FALSE,IF(C8="","",IF(G8="",0,VLOOKUP(G8,tabellen!I$3:N$24,5)*H8*I8)),IF(C10="",IF(G$8="",0,VLOOKUP(G$8,tabellen!I$3:N$24,5)*H$8*I$8),IF(G10="",0,VLOOKUP(G10,tabellen!I$3:N$24,5)*H10*I10)))),IF(C9="","",IF(tabellen!AD$1=FALSE,IF(C8="","",IF(G8="",0,VLOOKUP(G8,tabellen!I$3:N$24,5)*H8*I8)),IF(C10="",IF(G$8="",0,VLOOKUP(G$8,tabellen!I$3:N$24,5)*H$8*I$8),IF(G10="",0,VLOOKUP(G10,tabellen!I$3:N$24,5)*H10*I10))))+IF(D9="","",VLOOKUP(D9,tabellen!I$3:N$24,6)*E9*F9)) -> 
B10: ='aanvoer gewas'!B12 -> 2010 | C10: =IF('aanvoer gewas'!C12="","",'aanvoer gewas'!C12) ->  | F10: =IF(D10="","",VLOOKUP(D10,tabellen!$I$3:$N$24,4)) ->  | I10: =IF(G10="","",VLOOKUP(G10,tabellen!$I$3:$N$24,4)) ->  | J10: =IF(C10="","",IF(AND(D10="",G10=""),0,IF(G10="",(VLOOKUP(D10,tabellen!I$3:K$24,3)*E10),IF(D10="",(VLOOKUP(G10,tabellen!I$3:K$24,3)*H10),VLOOKUP(D10,tabellen!I$3:K$24,3)*E10+VLOOKUP(G10,tabellen!I$3:K$24,3)*H10)))) ->  | K10: =IF(D10="",IF(C10="","",IF(tabellen!AD$1=FALSE,IF(C9="","",IF(G9="",0,VLOOKUP(G9,tabellen!I$3:N$24,5)*H9*I9)),IF(C11="",IF(G$8="",0,VLOOKUP(G$8,tabellen!I$3:N$24,5)*H$8*I$8),IF(G11="",0,VLOOKUP(G11,tabellen!I$3:N$24,5)*H11*I11)))),IF(C10="","",IF(tabellen!AD$1=FALSE,IF(C9="","",IF(G9="",0,VLOOKUP(G9,tabellen!I$3:N$24,5)*H9*I9)),IF(C11="",IF(G$8="",0,VLOOKUP(G$8,tabellen!I$3:N$24,5)*H$8*I$8),IF(G11="",0,VLOOKUP(G11,tabellen!I$3:N$24,5)*H11*I11))))+IF(D10="","",VLOOKUP(D10,tabellen!I$3:N$24,6)*E10*F10)) -> 
B11: ='aanvoer gewas'!B13 -> 2009 | C11: =IF('aanvoer gewas'!C13="","",'aanvoer gewas'!C13) ->  | F11: =IF(D11="","",VLOOKUP(D11,tabellen!$I$3:$N$24,4)) ->  | I11: =IF(G11="","",VLOOKUP(G11,tabellen!$I$3:$N$24,4)) ->  | J11: =IF(C11="","",IF(AND(D11="",G11=""),0,IF(G11="",(VLOOKUP(D11,tabellen!I$3:K$24,3)*E11),IF(D11="",(VLOOKUP(G11,tabellen!I$3:K$24,3)*H11),VLOOKUP(D11,tabellen!I$3:K$24,3)*E11+VLOOKUP(G11,tabellen!I$3:K$24,3)*H11)))) ->  | K11: =IF(D11="",IF(C11="","",IF(tabellen!AD$1=FALSE,IF(C10="","",IF(G10="",0,VLOOKUP(G10,tabellen!I$3:N$24,5)*H10*I10)),IF(C12="",IF(G$8="",0,VLOOKUP(G$8,tabellen!I$3:N$24,5)*H$8*I$8),IF(G12="",0,VLOOKUP(G12,tabellen!I$3:N$24,5)*H12*I12)))),IF(C11="","",IF(tabellen!AD$1=FALSE,IF(C10="","",IF(G10="",0,VLOOKUP(G10,tabellen!I$3:N$24,5)*H10*I10)),IF(C12="",IF(G$8="",0,VLOOKUP(G$8,tabellen!I$3:N$24,5)*H$8*I$8),IF(G12="",0,VLOOKUP(G12,tabellen!I$3:N$24,5)*H12*I12))))+IF(D11="","",VLOOKUP(D11,tabellen!I$3:N$24,6)*E11*F11)) -> 
B12: ='aanvoer gewas'!B14 -> 2008 | C12: =IF('aanvoer gewas'!C14="","",'aanvoer gewas'!C14) ->  | F12: =IF(D12="","",VLOOKUP(D12,tabellen!$I$3:$N$24,4)) ->  | I12: =IF(G12="","",VLOOKUP(G12,tabellen!$I$3:$N$24,4)) ->  | J12: =IF(C12="","",IF(AND(D12="",G12=""),0,IF(G12="",(VLOOKUP(D12,tabellen!I$3:K$24,3)*E12),IF(D12="",(VLOOKUP(G12,tabellen!I$3:K$24,3)*H12),VLOOKUP(D12,tabellen!I$3:K$24,3)*E12+VLOOKUP(G12,tabellen!I$3:K$24,3)*H12)))) ->  | K12: =IF(D12="",IF(C12="","",IF(tabellen!AD$1=FALSE,IF(C11="","",IF(G11="",0,VLOOKUP(G11,tabellen!I$3:N$24,5)*H11*I11)),IF(C13="",IF(G$8="",0,VLOOKUP(G$8,tabellen!I$3:N$24,5)*H$8*I$8),IF(G13="",0,VLOOKUP(G13,tabellen!I$3:N$24,5)*H13*I13)))),IF(C12="","",IF(tabellen!AD$1=FALSE,IF(C11="","",IF(G11="",0,VLOOKUP(G11,tabellen!I$3:N$24,5)*H11*I11)),IF(C13="",IF(G$8="",0,VLOOKUP(G$8,tabellen!I$3:N$24,5)*H$8*I$8),IF(G13="",0,VLOOKUP(G13,tabellen!I$3:N$24,5)*H13*I13))))+IF(D12="","",VLOOKUP(D12,tabellen!I$3:N$24,6)*E12*F12)) -> 
B13: ='aanvoer gewas'!B15 -> 2007 | C13: =IF('aanvoer gewas'!C15="","",'aanvoer gewas'!C15) ->  | F13: =IF(D13="","",VLOOKUP(D13,tabellen!$I$3:$N$24,4)) ->  | I13: =IF(G13="","",VLOOKUP(G13,tabellen!$I$3:$N$24,4)) ->  | J13: =IF(C13="","",IF(AND(D13="",G13=""),0,IF(G13="",(VLOOKUP(D13,tabellen!I$3:K$24,3)*E13),IF(D13="",(VLOOKUP(G13,tabellen!I$3:K$24,3)*H13),VLOOKUP(D13,tabellen!I$3:K$24,3)*E13+VLOOKUP(G13,tabellen!I$3:K$24,3)*H13)))) ->  | K13: =IF(D13="",IF(C13="","",IF(tabellen!AD$1=FALSE,IF(C12="","",IF(G12="",0,VLOOKUP(G12,tabellen!I$3:N$24,5)*H12*I12)),IF(C14="",IF(G$8="",0,VLOOKUP(G$8,tabellen!I$3:N$24,5)*H$8*I$8),IF(G14="",0,VLOOKUP(G14,tabellen!I$3:N$24,5)*H14*I14)))),IF(C13="","",IF(tabellen!AD$1=FALSE,IF(C12="","",IF(G12="",0,VLOOKUP(G12,tabellen!I$3:N$24,5)*H12*I12)),IF(C14="",IF(G$8="",0,VLOOKUP(G$8,tabellen!I$3:N$24,5)*H$8*I$8),IF(G14="",0,VLOOKUP(G14,tabellen!I$3:N$24,5)*H14*I14))))+IF(D13="","",VLOOKUP(D13,tabellen!I$3:N$24,6)*E13*F13)) -> 
B14: ='aanvoer gewas'!B16 -> 2006 | C14: =IF('aanvoer gewas'!C16="","",'aanvoer gewas'!C16) ->  | F14: =IF(D14="","",VLOOKUP(D14,tabellen!$I$3:$N$24,4)) ->  | I14: =IF(G14="","",VLOOKUP(G14,tabellen!$I$3:$N$24,4)) ->  | J14: =IF(C14="","",IF(AND(D14="",G14=""),0,IF(G14="",(VLOOKUP(D14,tabellen!I$3:K$24,3)*E14),IF(D14="",(VLOOKUP(G14,tabellen!I$3:K$24,3)*H14),VLOOKUP(D14,tabellen!I$3:K$24,3)*E14+VLOOKUP(G14,tabellen!I$3:K$24,3)*H14)))) ->  | K14: =IF(D14="",IF(C14="","",IF(tabellen!AD$1=FALSE,IF(C13="","",IF(G13="",0,VLOOKUP(G13,tabellen!I$3:N$24,5)*H13*I13)),IF(C15="",IF(G$8="",0,VLOOKUP(G$8,tabellen!I$3:N$24,5)*H$8*I$8),IF(G15="",0,VLOOKUP(G15,tabellen!I$3:N$24,5)*H15*I15)))),IF(C14="","",IF(tabellen!AD$1=FALSE,IF(C13="","",IF(G13="",0,VLOOKUP(G13,tabellen!I$3:N$24,5)*H13*I13)),IF(C15="",IF(G$8="",0,VLOOKUP(G$8,tabellen!I$3:N$24,5)*H$8*I$8),IF(G15="",0,VLOOKUP(G15,tabellen!I$3:N$24,5)*H15*I15))))+IF(D14="","",VLOOKUP(D14,tabellen!I$3:N$24,6)*E14*F14)) -> 
B15: ='aanvoer gewas'!B17 -> 2005 | C15: =IF('aanvoer gewas'!C17="","",'aanvoer gewas'!C17) ->  | F15: =IF(D15="","",VLOOKUP(D15,tabellen!$I$3:$N$24,4)) ->  | I15: =IF(G15="","",VLOOKUP(G15,tabellen!$I$3:$N$24,4)) ->  | J15: =IF(C15="","",IF(AND(D15="",G15=""),0,IF(G15="",(VLOOKUP(D15,tabellen!I$3:K$24,3)*E15),IF(D15="",(VLOOKUP(G15,tabellen!I$3:K$24,3)*H15),VLOOKUP(D15,tabellen!I$3:K$24,3)*E15+VLOOKUP(G15,tabellen!I$3:K$24,3)*H15)))) ->  | K15: =IF(D15="",IF(C15="","",IF(tabellen!AD$1=FALSE,IF(C14="","",IF(G14="",0,VLOOKUP(G14,tabellen!I$3:N$24,5)*H14*I14)),IF(C16="",IF(G$8="",0,VLOOKUP(G$8,tabellen!I$3:N$24,5)*H$8*I$8),IF(G16="",0,VLOOKUP(G16,tabellen!I$3:N$24,5)*H16*I16)))),IF(C15="","",IF(tabellen!AD$1=FALSE,IF(C14="","",IF(G14="",0,VLOOKUP(G14,tabellen!I$3:N$24,5)*H14*I14)),IF(C16="",IF(G$8="",0,VLOOKUP(G$8,tabellen!I$3:N$24,5)*H$8*I$8),IF(G16="",0,VLOOKUP(G16,tabellen!I$3:N$24,5)*H16*I16))))+IF(D15="","",VLOOKUP(D15,tabellen!I$3:N$24,6)*E15*F15)) -> 
B16: ='aanvoer gewas'!B18 -> 2004 | C16: =IF('aanvoer gewas'!C18="","",'aanvoer gewas'!C18) ->  | F16: =IF(D16="","",VLOOKUP(D16,tabellen!$I$3:$N$24,4)) ->  | I16: =IF(G16="","",VLOOKUP(G16,tabellen!$I$3:$N$24,4)) ->  | J16: =IF(C16="","",IF(AND(D16="",G16=""),0,IF(G16="",(VLOOKUP(D16,tabellen!I$3:K$24,3)*E16),IF(D16="",(VLOOKUP(G16,tabellen!I$3:K$24,3)*H16),VLOOKUP(D16,tabellen!I$3:K$24,3)*E16+VLOOKUP(G16,tabellen!I$3:K$24,3)*H16)))) ->  | K16: =IF(D16="",IF(C16="","",IF(tabellen!AD$1=FALSE,IF(C15="","",IF(G15="",0,VLOOKUP(G15,tabellen!I$3:N$24,5)*H15*I15)),IF(C17="",IF(G$8="",0,VLOOKUP(G$8,tabellen!I$3:N$24,5)*H$8*I$8),IF(G17="",0,VLOOKUP(G17,tabellen!I$3:N$24,5)*H17*I17)))),IF(C16="","",IF(tabellen!AD$1=FALSE,IF(C15="","",IF(G15="",0,VLOOKUP(G15,tabellen!I$3:N$24,5)*H15*I15)),IF(C17="",IF(G$8="",0,VLOOKUP(G$8,tabellen!I$3:N$24,5)*H$8*I$8),IF(G17="",0,VLOOKUP(G17,tabellen!I$3:N$24,5)*H17*I17))))+IF(D16="","",VLOOKUP(D16,tabellen!I$3:N$24,6)*E16*F16)) -> 
B17: ='aanvoer gewas'!B19 -> 2003 | C17: =IF('aanvoer gewas'!C19="","",'aanvoer gewas'!C19) ->  | F17: =IF(D17="","",VLOOKUP(D17,tabellen!$I$3:$N$24,4)) ->  | I17: =IF(G17="","",VLOOKUP(G17,tabellen!$I$3:$N$24,4)) ->  | J17: =IF(C17="","",IF(AND(D17="",G17=""),0,IF(G17="",(VLOOKUP(D17,tabellen!I$3:K$24,3)*E17),IF(D17="",(VLOOKUP(G17,tabellen!I$3:K$24,3)*H17),VLOOKUP(D17,tabellen!I$3:K$24,3)*E17+VLOOKUP(G17,tabellen!I$3:K$24,3)*H17)))) ->  | K17: =IF(D17="",IF(C17="","",IF(tabellen!AD$1=FALSE,IF(C16="","",IF(G16="",0,VLOOKUP(G16,tabellen!I$3:N$24,5)*H16*I16)),IF(C18="",IF(G$8="",0,VLOOKUP(G$8,tabellen!I$3:N$24,5)*H$8*I$8),IF(G18="",0,VLOOKUP(G18,tabellen!I$3:N$24,5)*H18*I18)))),IF(C17="","",IF(tabellen!AD$1=FALSE,IF(C16="","",IF(G16="",0,VLOOKUP(G16,tabellen!I$3:N$24,5)*H16*I16)),IF(C18="",IF(G$8="",0,VLOOKUP(G$8,tabellen!I$3:N$24,5)*H$8*I$8),IF(G18="",0,VLOOKUP(G18,tabellen!I$3:N$24,5)*H18*I18))))+IF(D17="","",VLOOKUP(D17,tabellen!I$3:N$24,6)*E17*F17)) -> 
I18: gemiddelde jaarlijkse organische stofaanvoer | J18: =AVERAGE(J8:J17) -> 
H20: <<terug | J20: verder>>
J24: organische stofbalans (3/7)

Sheet aanvoer compost
B2: ORGANISCHE STOFBALANS
B4: aanvoer compost
D6: compost voorjaar | G6: compost najaar
B7: jaar | C7: gewas | D7: soort compost | E7: dosering (ton per ha) | F7: N (kg/ton) | G7: soort compost | H7: dosering (ton per ha) | I7: N (kg/ton) | J7: aanvoer eff. org. stof (kg/ha) | K7: beschikbare N (kg/ha)
B8: ='aanvoer gewas'!B10 -> 2012 | C8: =IF('aanvoer gewas'!C10="","",'aanvoer gewas'!C10) ->  | F8: =IF(D8="","",VLOOKUP(D8,tabellen!$Q$3:$V$12,4)) ->  | I8: =IF(G8="","",VLOOKUP(G8,tabellen!$Q$3:$V$12,4)) ->  | J8: =IF(C8="","",IF(AND(D8="",G8=""),0,IF(G8="",(VLOOKUP(D8,tabellen!$Q$3:$V$12,3)*E8),IF(D8="",(VLOOKUP(G8,tabellen!$Q$3:$V$12,3)*H8),VLOOKUP(D8,tabellen!$Q$3:$V$12,3)*E8+VLOOKUP(G8,tabellen!$Q$3:$V$12,3)*H8)))) ->  | K8: =IF(D8="",IF(tabellen!AD1=FALSE,IF(AND(C8="",G8=""),"",IF(AND(C9="",G8<>""),VLOOKUP(G8,tabellen!Q$3:V$12,5)*H8*I8,IF(AND(C10="",G9<>""),VLOOKUP(G9,tabellen!Q$3:V$12,5)*H9*I9,IF(AND(C11="",G10<>""),VLOOKUP(G10,tabellen!Q$3:V$12,5)*H10*I10,IF(AND(C12="",G11<>""),VLOOKUP(G11,tabellen!Q$3:V$12,5)*H11*I11,IF(AND(C13="",G12<>""),VLOOKUP(G12,tabellen!Q$3:V$12,5)*H12*I12,IF(AND(C14="",G13<>""),VLOOKUP(G13,tabellen!Q$3:V$12,5)*H13*I13,IF(AND(C15="",G14<>""),VLOOKUP(G14,tabellen!Q$3:V$12,5)*H14*I14,IF(AND(C16="",G15<>""),VLOOKUP(G15,tabellen!Q$3:V$12,5)*H15*I15,IF(AND(C17="",G16<>""),VLOOKUP(G16,tabellen!Q$3:V$12,5)*H16*I16,IF(AND(C17<>"",G17<>""),VLOOKUP(G17,tabellen!Q$3:V$12,5)*H17*I17,0))))))))))),IF(C9="",IF(G8="",0,VLOOKUP(G8,tabellen!Q$3:V$12,5)*H8*I8),IF(G9="",0,VLOOKUP(G9,tabellen!Q$3:V$12,5)*H9*I9))),IF(tabellen!AD1=FALSE,IF(AND(C8="",G8=""),"",IF(AND(C9="",G8<>""),VLOOKUP(G8,tabellen!Q$3:V$12,5)*H8*I8,IF(AND(C10="",G9<>""),VLOOKUP(G9,tabellen!Q$3:V$12,5)*H9*I9,IF(AND(C11="",G10<>""),VLOOKUP(G10,tabellen!Q$3:V$12,5)*H10*I10,IF(AND(C12="",G11<>""),VLOOKUP(G11,tabellen!Q$3:V$12,5)*H11*I11,IF(AND(C13="",G12<>""),VLOOKUP(G12,tabellen!Q$3:V$12,5)*H12*I12,IF(AND(C14="",G13<>""),VLOOKUP(G13,tabellen!Q$3:V$12,5)*H13*I13,IF(AND(C15="",G14<>""),VLOOKUP(G14,tabellen!Q$3:V$12,5)*H14*I14,IF(AND(C16="",G15<>""),VLOOKUP(G15,tabellen!Q$3:V$12,5)*H15*I15,IF(AND(C17="",G16<>""),VLOOKUP(G16,tabellen!Q$3:V$12,5)*H16*I16,IF(AND(C17<>"",G17<>""),VLOOKUP(G17,tabellen!Q$3:V$12,5)*H17*I17,0))))))))))),IF(C9="",IF(G8="",0,VLOOKUP(G8,tabellen!Q$3:V$12,5)*H8*I8),IF(G9="",0,VLOOKUP(G9,tabellen!Q$3:V$12,5)*H9*I9)))+IF(D8="","",VLOOKUP(D8,tabellen!Q$3:V$12,6)*E8*F8)) -> 0
B9: ='aanvoer gewas'!B11 -> 2011 | C9: =IF('aanvoer gewas'!C11="","",'aanvoer gewas'!C11) ->  | F9: =IF(D9="","",VLOOKUP(D9,tabellen!$Q$3:$V$12,4)) ->  | I9: =IF(G9="","",VLOOKUP(G9,tabellen!$Q$3:$V$12,4)) ->  | J9: =IF(C9="","",IF(AND(D9="",G9=""),0,IF(G9="",(VLOOKUP(D9,tabellen!$Q$3:$V$12,3)*E9),IF(D9="",(VLOOKUP(G9,tabellen!$Q$3:$V$12,3)*H9),VLOOKUP(D9,tabellen!$Q$3:$V$12,3)*E9+VLOOKUP(G9,tabellen!$Q$3:$V$12,3)*H9)))) ->  | K9: =IF(D9="",IF(C9="","",IF(tabellen!AD$1=FALSE,IF(C8="","",IF(G8="",0,VLOOKUP(G8,tabellen!Q$3:V$12,5)*H8*I8)),IF(C10="",IF(G$8="",0,VLOOKUP(G$8,tabellen!Q$3:V$12,5)*H$8*I$8),IF(G10="",0,VLOOKUP(G10,tabellen!Q$3:V$12,5)*H10*I10)))),IF(C9="","",IF(tabellen!AD$1=FALSE,IF(C8="","",IF(G8="",0,VLOOKUP(G8,tabellen!Q$3:V$12,5)*H8*I8)),IF(C10="",IF(G$8="",0,VLOOKUP(G$8,tabellen!Q$3:V$12,5)*H$8*I$8),IF(G10="",0,VLOOKUP(G10,tabellen!Q$3:V$12,5)*H10*I10))))+IF(D9="","",VLOOKUP(D9,tabellen!Q$3:V$12,6)*E9*F9)) -> 
B10: ='aanvoer gewas'!B12 -> 2010 | C10: =IF('aanvoer gewas'!C12="","",'aanvoer gewas'!C12) ->  | F10: =IF(D10="","",VLOOKUP(D10,tabellen!$Q$3:$V$12,4)) ->  | I10: =IF(G10="","",VLOOKUP(G10,tabellen!$Q$3:$V$12,4)) ->  | J10: =IF(C10="","",IF(AND(D10="",G10=""),0,IF(G10="",(VLOOKUP(D10,tabellen!$Q$3:$V$12,3)*E10),IF(D10="",(VLOOKUP(G10,tabellen!$Q$3:$V$12,3)*H10),VLOOKUP(D10,tabellen!$Q$3:$V$12,3)*E10+VLOOKUP(G10,tabellen!$Q$3:$V$12,3)*H10)))) ->  | K10: =IF(D10="",IF(C10="","",IF(tabellen!AD$1=FALSE,IF(C9="","",IF(G9="",0,VLOOKUP(G9,tabellen!Q$3:V$12,5)*H9*I9)),IF(C11="",IF(G$8="",0,VLOOKUP(G$8,tabellen!Q$3:V$12,5)*H$8*I$8),IF(G11="",0,VLOOKUP(G11,tabellen!Q$3:V$12,5)*H11*I11)))),IF(C10="","",IF(tabellen!AD$1=FALSE,IF(C9="","",IF(G9="",0,VLOOKUP(G9,tabellen!Q$3:V$12,5)*H9*I9)),IF(C11="",IF(G$8="",0,VLOOKUP(G$8,tabellen!Q$3:V$12,5)*H$8*I$8),IF(G11="",0,VLOOKUP(G11,tabellen!Q$3:V$12,5)*H11*I11))))+IF(D10="","",VLOOKUP(D10,tabellen!Q$3:V$12,6)*E10*F10)) -> 
B11: ='aanvoer gewas'!B13 -> 2009 | C11: =IF('aanvoer gewas'!C13="","",'aanvoer gewas'!C13) ->  | F11: =IF(D11="","",VLOOKUP(D11,tabellen!$Q$3:$V$12,4)) ->  | I11: =IF(G11="","",VLOOKUP(G11,tabellen!$Q$3:$V$12,4)) ->  | J11: =IF(C11="","",IF(AND(D11="",G11=""),0,IF(G11="",(VLOOKUP(D11,tabellen!$Q$3:$V$12,3)*E11),IF(D11="",(VLOOKUP(G11,tabellen!$Q$3:$V$12,3)*H11),VLOOKUP(D11,tabellen!$Q$3:$V$12,3)*E11+VLOOKUP(G11,tabellen!$Q$3:$V$12,3)*H11)))) ->  | K11: =IF(D11="",IF(C11="","",IF(tabellen!AD$1=FALSE,IF(C10="","",IF(G10="",0,VLOOKUP(G10,tabellen!Q$3:V$12,5)*H10*I10)),IF(C12="",IF(G$8="",0,VLOOKUP(G$8,tabellen!Q$3:V$12,5)*H$8*I$8),IF(G12="",0,VLOOKUP(G12,tabellen!Q$3:V$12,5)*H12*I12)))),IF(C11="","",IF(tabellen!AD$1=FALSE,IF(C10="","",IF(G10="",0,VLOOKUP(G10,tabellen!Q$3:V$12,5)*H10*I10)),IF(C12="",IF(G$8="",0,VLOOKUP(G$8,tabellen!Q$3:V$12,5)*H$8*I$8),IF(G12="",0,VLOOKUP(G12,tabellen!Q$3:V$12,5)*H12*I12))))+IF(D11="","",VLOOKUP(D11,tabellen!Q$3:V$12,6)*E11*F11)) -> 
B12: ='aanvoer gewas'!B14 -> 2008 | C12: =IF('aanvoer gewas'!C14="","",'aanvoer gewas'!C14) ->  | F12: =IF(D12="","",VLOOKUP(D12,tabellen!$Q$3:$V$12,4)) ->  | I12: =IF(G12="","",VLOOKUP(G12,tabellen!$Q$3:$V$12,4)) ->  | J12: =IF(C12="","",IF(AND(D12="",G12=""),0,IF(G12="",(VLOOKUP(D12,tabellen!$Q$3:$V$12,3)*E12),IF(D12="",(VLOOKUP(G12,tabellen!$Q$3:$V$12,3)*H12),VLOOKUP(D12,tabellen!$Q$3:$V$12,3)*E12+VLOOKUP(G12,tabellen!$Q$3:$V$12,3)*H12)))) ->  | K12: =IF(D12="",IF(C12="","",IF(tabellen!AD$1=FALSE,IF(C11="","",IF(G11="",0,VLOOKUP(G11,tabellen!Q$3:V$12,5)*H11*I11)),IF(C13="",IF(G$8="",0,VLOOKUP(G$8,tabellen!Q$3:V$12,5)*H$8*I$8),IF(G13="",0,VLOOKUP(G13,tabellen!Q$3:V$12,5)*H13*I13)))),IF(C12="","",IF(tabellen!AD$1=FALSE,IF(C11="","",IF(G11="",0,VLOOKUP(G11,tabellen!Q$3:V$12,5)*H11*I11)),IF(C13="",IF(G$8="",0,VLOOKUP(G$8,tabellen!Q$3:V$12,5)*H$8*I$8),IF(G13="",0,VLOOKUP(G13,tabellen!Q$3:V$12,5)*H13*I13))))+IF(D12="","",VLOOKUP(D12,tabellen!Q$3:V$12,6)*E12*F12)) -> 
B13: ='aanvoer gewas'!B15 -> 2007 | C13: =IF('aanvoer gewas'!C15="","",'aanvoer gewas'!C15) ->  | F13: =IF(D13="","",VLOOKUP(D13,tabellen!$Q$3:$V$12,4)) ->  | I13: =IF(G13="","",VLOOKUP(G13,tabellen!$Q$3:$V$12,4)) ->  | J13: =IF(C13="","",IF(AND(D13="",G13=""),0,IF(G13="",(VLOOKUP(D13,tabellen!$Q$3:$V$12,3)*E13),IF(D13="",(VLOOKUP(G13,tabellen!$Q$3:$V$12,3)*H13),VLOOKUP(D13,tabellen!$Q$3:$V$12,3)*E13+VLOOKUP(G13,tabellen!$Q$3:$V$12,3)*H13)))) ->  | K13: =IF(D13="",IF(C13="","",IF(tabellen!AD$1=FALSE,IF(C12="","",IF(G12="",0,VLOOKUP(G12,tabellen!Q$3:V$12,5)*H12*I12)),IF(C14="",IF(G$8="",0,VLOOKUP(G$8,tabellen!Q$3:V$12,5)*H$8*I$8),IF(G14="",0,VLOOKUP(G14,tabellen!Q$3:V$12,5)*H14*I14)))),IF(C13="","",IF(tabellen!AD$1=FALSE,IF(C12="","",IF(G12="",0,VLOOKUP(G12,tabellen!Q$3:V$12,5)*H12*I12)),IF(C14="",IF(G$8="",0,VLOOKUP(G$8,tabellen!Q$3:V$12,5)*H$8*I$8),IF(G14="",0,VLOOKUP(G14,tabellen!Q$3:V$12,5)*H14*I14))))+IF(D13="","",VLOOKUP(D13,tabellen!Q$3:V$12,6)*E13*F13)) -> 
B14: ='aanvoer gewas'!B16 -> 2006 | C14: =IF('aanvoer gewas'!C16="","",'aanvoer gewas'!C16) ->  | F14: =IF(D14="","",VLOOKUP(D14,tabellen!$Q$3:$V$12,4)) ->  | I14: =IF(G14="","",VLOOKUP(G14,tabellen!$Q$3:$V$12,4)) ->  | J14: =IF(C14="","",IF(AND(D14="",G14=""),0,IF(G14="",(VLOOKUP(D14,tabellen!$Q$3:$V$12,3)*E14),IF(D14="",(VLOOKUP(G14,tabellen!$Q$3:$V$12,3)*H14),VLOOKUP(D14,tabellen!$Q$3:$V$12,3)*E14+VLOOKUP(G14,tabellen!$Q$3:$V$12,3)*H14)))) ->  | K14: =IF(D14="",IF(C14="","",IF(tabellen!AD$1=FALSE,IF(C13="","",IF(G13="",0,VLOOKUP(G13,tabellen!Q$3:V$12,5)*H13*I13)),IF(C15="",IF(G$8="",0,VLOOKUP(G$8,tabellen!Q$3:V$12,5)*H$8*I$8),IF(G15="",0,VLOOKUP(G15,tabellen!Q$3:V$12,5)*H15*I15)))),IF(C14="","",IF(tabellen!AD$1=FALSE,IF(C13="","",IF(G13="",0,VLOOKUP(G13,tabellen!Q$3:V$12,5)*H13*I13)),IF(C15="",IF(G$8="",0,VLOOKUP(G$8,tabellen!Q$3:V$12,5)*H$8*I$8),IF(G15="",0,VLOOKUP(G15,tabellen!Q$3:V$12,5)*H15*I15))))+IF(D14="","",VLOOKUP(D14,tabellen!Q$3:V$12,6)*E14*F14)) -> 
B15: ='aanvoer gewas'!B17 -> 2005 | C15: =IF('aanvoer gewas'!C17="","",'aanvoer gewas'!C17) ->  | F15: =IF(D15="","",VLOOKUP(D15,tabellen!$Q$3:$V$12,4)) ->  | I15: =IF(G15="","",VLOOKUP(G15,tabellen!$Q$3:$V$12,4)) ->  | J15: =IF(C15="","",IF(AND(D15="",G15=""),0,IF(G15="",(VLOOKUP(D15,tabellen!$Q$3:$V$12,3)*E15),IF(D15="",(VLOOKUP(G15,tabellen!$Q$3:$V$12,3)*H15),VLOOKUP(D15,tabellen!$Q$3:$V$12,3)*E15+VLOOKUP(G15,tabellen!$Q$3:$V$12,3)*H15)))) ->  | K15: =IF(D15="",IF(C15="","",IF(tabellen!AD$1=FALSE,IF(C14="","",IF(G14="",0,VLOOKUP(G14,tabellen!Q$3:V$12,5)*H14*I14)),IF(C16="",IF(G$8="",0,VLOOKUP(G$8,tabellen!Q$3:V$12,5)*H$8*I$8),IF(G16="",0,VLOOKUP(G16,tabellen!Q$3:V$12,5)*H16*I16)))),IF(C15="","",IF(tabellen!AD$1=FALSE,IF(C14="","",IF(G14="",0,VLOOKUP(G14,tabellen!Q$3:V$12,5)*H14*I14)),IF(C16="",IF(G$8="",0,VLOOKUP(G$8,tabellen!Q$3:V$12,5)*H$8*I$8),IF(G16="",0,VLOOKUP(G16,tabellen!Q$3:V$12,5)*H16*I16))))+IF(D15="","",VLOOKUP(D15,tabellen!Q$3:V$12,6)*E15*F15)) -> 
B16: ='aanvoer gewas'!B18 -> 2004 | C16: =IF('aanvoer gewas'!C18="","",'aanvoer gewas'!C18) ->  | F16: =IF(D16="","",VLOOKUP(D16,tabellen!$Q$3:$V$12,4)) ->  | I16: =IF(G16="","",VLOOKUP(G16,tabellen!$Q$3:$V$12,4)) ->  | J16: =IF(C16="","",IF(AND(D16="",G16=""),0,IF(G16="",(VLOOKUP(D16,tabellen!$Q$3:$V$12,3)*E16),IF(D16="",(VLOOKUP(G16,tabellen!$Q$3:$V$12,3)*H16),VLOOKUP(D16,tabellen!$Q$3:$V$12,3)*E16+VLOOKUP(G16,tabellen!$Q$3:$V$12,3)*H16)))) ->  | K16: =IF(C16="","",IF(tabellen!AD$1=FALSE,IF(C15="","",IF(G15="",0,VLOOKUP(G15,tabellen!Q$3:V$12,5)*H15*I15)),IF(C17="",IF(G$8="",0,VLOOKUP(G$8,tabellen!Q$3:V$12,5)*H$8*I$8),IF(G17="",0,VLOOKUP(G17,tabellen!Q$3:V$12,5)*H17*I17)))) -> 
B17: ='aanvoer gewas'!B19 -> 2003 | C17: =IF('aanvoer gewas'!C19="","",'aanvoer gewas'!C19) ->  | F17: =IF(D17="","",VLOOKUP(D17,tabellen!$Q$3:$V$12,4)) ->  | I17: =IF(G17="","",VLOOKUP(G17,tabellen!$Q$3:$V$12,4)) ->  | J17: =IF(C17="","",IF(AND(D17="",G17=""),0,IF(G17="",(VLOOKUP(D17,tabellen!$Q$3:$V$12,3)*E17),IF(D17="",(VLOOKUP(G17,tabellen!$Q$3:$V$12,3)*H17),VLOOKUP(D17,tabellen!$Q$3:$V$12,3)*E17+VLOOKUP(G17,tabellen!$Q$3:$V$12,3)*H17)))) ->  | K17: =IF(C17="","",IF(tabellen!AD$1=FALSE,IF(C16="","",IF(G16="",0,VLOOKUP(G16,tabellen!Q$3:V$12,5)*H16*I16)),IF(C18="",IF(G$8="",0,VLOOKUP(G$8,tabellen!Q$3:V$12,5)*H$8*I$8),IF(G18="",0,VLOOKUP(G18,tabellen!Q$3:V$12,5)*H18*I18)))) -> 
I18: gemiddelde jaarlijkse organische stofaanvoer | J18: =AVERAGE(J8:J17) -> 
H20: <<terug | J20: verder>>
J24: organische stofbalans (3/7)

Sheet aanvoer groenbemesters
B2: ORGANISCHE STOFBALANS
B4: aanvoer groenbemesters
B6: jaar | C6: gewas | D6: soort groenbemester | E6: aanvoer eff. org. stof (kg/ha) | F6: beschikbare N (kg/ha)
B7: ='aanvoer gewas'!B10 -> 2012 | C7: =IF('aanvoer gewas'!C10="","",'aanvoer gewas'!C10) ->  | E7: =IF(C7="","",IF(D7="",0,VLOOKUP(D7,tabellen!X$3:Y$22,2))) ->  | F7: =IF(tabellen!AD1=FALSE,IF(AND(C7="",D7=""),"",IF(AND(C8="",D7<>""),VLOOKUP(D7,tabellen!X$3:Z$22,3),IF(AND(C9="",D8<>""),VLOOKUP(D8,tabellen!X$3:Z$22,3),IF(AND(C10="",D9<>""),VLOOKUP(D9,tabellen!X$3:Z$22,3),IF(AND(C11="",D10<>""),VLOOKUP(D10,tabellen!X$3:Z$22,3),IF(AND(C12="",D11<>""),VLOOKUP(D11,tabellen!X$3:Z$22,3),IF(AND(C13="",D12<>""),VLOOKUP(D12,tabellen!X$3:Z$22,3),IF(AND(C14="",D13<>""),VLOOKUP(D13,tabellen!X$3:Z$22,3),IF(AND(C15="",D14<>""),VLOOKUP(D14,tabellen!X$3:Z$22,3),IF(AND(C16="",D15<>""),VLOOKUP(D15,tabellen!X$3:Z$22,3),IF(AND(C16<>"",D16<>""),VLOOKUP(D16,tabellen!X$3:Z$22,3),0))))))))))),IF(C8="",IF(D7="",0,VLOOKUP(D7,tabellen!X$3:Z$22,3)),IF(D8="",0,VLOOKUP(D8,tabellen!X$3:Z$22,3)))) -> 0
B8: ='aanvoer gewas'!B11 -> 2011 | C8: =IF('aanvoer gewas'!C11="","",'aanvoer gewas'!C11) ->  | E8: =IF(C8="","",IF(D8="",0,VLOOKUP(D8,tabellen!X$3:Y$22,2))) ->  | F8: =IF(C8="","",IF(tabellen!AD$1=FALSE,IF(C7="","",IF(D7="",0,VLOOKUP(D7,tabellen!X$3:Z$22,3))),IF(C9="",IF(D$7="",0,VLOOKUP(D$7,tabellen!X$3:Z$22,3)),IF(D9="",0,VLOOKUP(D9,tabellen!X$3:Z$22,3))))) -> 
B9: ='aanvoer gewas'!B12 -> 2010 | C9: =IF('aanvoer gewas'!C12="","",'aanvoer gewas'!C12) ->  | E9: =IF(C9="","",IF(D9="",0,VLOOKUP(D9,tabellen!X$3:Y$22,2))) ->  | F9: =IF(C9="","",IF(tabellen!AD$1=FALSE,IF(C8="","",IF(D8="",0,VLOOKUP(D8,tabellen!X$3:Z$22,3))),IF(C10="",IF(D$7="",0,VLOOKUP(D$7,tabellen!X$3:Z$22,3)),IF(D10="",0,VLOOKUP(D10,tabellen!X$3:Z$22,3))))) -> 
B10: ='aanvoer gewas'!B13 -> 2009 | C10: =IF('aanvoer gewas'!C13="","",'aanvoer gewas'!C13) ->  | E10: =IF(C10="","",IF(D10="",0,VLOOKUP(D10,tabellen!X$3:Y$22,2))) ->  | F10: =IF(C10="","",IF(tabellen!AD$1=FALSE,IF(C9="","",IF(D9="",0,VLOOKUP(D9,tabellen!X$3:Z$22,3))),IF(C11="",IF(D$7="",0,VLOOKUP(D$7,tabellen!X$3:Z$22,3)),IF(D11="",0,VLOOKUP(D11,tabellen!X$3:Z$22,3))))) -> 
B11: ='aanvoer gewas'!B14 -> 2008 | C11: =IF('aanvoer gewas'!C14="","",'aanvoer gewas'!C14) ->  | E11: =IF(C11="","",IF(D11="",0,VLOOKUP(D11,tabellen!X$3:Y$22,2))) ->  | F11: =IF(C11="","",IF(tabellen!AD$1=FALSE,IF(C10="","",IF(D10="",0,VLOOKUP(D10,tabellen!X$3:Z$22,3))),IF(C12="",IF(D$7="",0,VLOOKUP(D$7,tabellen!X$3:Z$22,3)),IF(D12="",0,VLOOKUP(D12,tabellen!X$3:Z$22,3))))) -> 
B12: ='aanvoer gewas'!B15 -> 2007 | C12: =IF('aanvoer gewas'!C15="","",'aanvoer gewas'!C15) ->  | E12: =IF(C12="","",IF(D12="",0,VLOOKUP(D12,tabellen!X$3:Y$22,2))) ->  | F12: =IF(C12="","",IF(tabellen!AD$1=FALSE,IF(C11="","",IF(D11="",0,VLOOKUP(D11,tabellen!X$3:Z$22,3))),IF(C13="",IF(D$7="",0,VLOOKUP(D$7,tabellen!X$3:Z$22,3)),IF(D13="",0,VLOOKUP(D13,tabellen!X$3:Z$22,3))))) -> 
B13: ='aanvoer gewas'!B16 -> 2006 | C13: =IF('aanvoer gewas'!C16="","",'aanvoer gewas'!C16) ->  | E13: =IF(C13="","",IF(D13="",0,VLOOKUP(D13,tabellen!X$3:Y$22,2))) ->  | F13: =IF(C13="","",IF(tabellen!AD$1=FALSE,IF(C12="","",IF(D12="",0,VLOOKUP(D12,tabellen!X$3:Z$22,3))),IF(C14="",IF(D$7="",0,VLOOKUP(D$7,tabellen!X$3:Z$22,3)),IF(D14="",0,VLOOKUP(D14,tabellen!X$3:Z$22,3))))) -> 
B14: ='aanvoer gewas'!B17 -> 2005 | C14: =IF('aanvoer gewas'!C17="","",'aanvoer gewas'!C17) ->  | E14: =IF(C14="","",IF(D14="",0,VLOOKUP(D14,tabellen!X$3:Y$22,2))) ->  | F14: =IF(C14="","",IF(tabellen!AD$1=FALSE,IF(C13="","",IF(D13="",0,VLOOKUP(D13,tabellen!X$3:Z$22,3))),IF(C15="",IF(D$7="",0,VLOOKUP(D$7,tabellen!X$3:Z$22,3)),IF(D15="",0,VLOOKUP(D15,tabellen!X$3:Z$22,3))))) -> 
B15: ='aanvoer gewas'!B18 -> 2004 | C15: =IF('aanvoer gewas'!C18="","",'aanvoer gewas'!C18) ->  | E15: =IF(C15="","",IF(D15="",0,VLOOKUP(D15,tabellen!X$3:Y$22,2))) ->  | F15: =IF(C15="","",IF(tabellen!AD$1=FALSE,IF(C14="","",IF(D14="",0,VLOOKUP(D14,tabellen!X$3:Z$22,3))),IF(C16="",IF(D$7="",0,VLOOKUP(D$7,tabellen!X$3:Z$22,3)),IF(D16="",0,VLOOKUP(D16,tabellen!X$3:Z$22,3))))) -> 
B16: ='aanvoer gewas'!B19 -> 2003 | C16: =IF('aanvoer gewas'!C19="","",'aanvoer gewas'!C19) ->  | E16: =IF(C16="","",IF(D16="",0,VLOOKUP(D16,tabellen!X$3:Y$22,2))) ->  | F16: =IF(C16="","",IF(tabellen!AD$1=FALSE,IF(C15="","",IF(D15="",0,VLOOKUP(D15,tabellen!X$3:Z$22,3))),IF(C17="",IF(D$7="",0,VLOOKUP(D$7,tabellen!X$3:Z$22,3)),IF(D17="",0,VLOOKUP(D17,tabellen!X$3:Z$22,3))))) -> 
D17: gemiddelde jaarlijkse organische stofaanvoer | E17: =AVERAGE(E7:E16) -> 
E19: <<terug | F19: verder>>
E29: organische stofbalans (5/7)

Sheet resultaat
B2: ORGANISCHE STOFBALANS
B4: resultaat organische stofbalans
C7: perceel | D7: =basis!C13 -> 0
D10: kg effectieve organische stof per hectare
C12: gemiddelde jaarlijks aanvoer | D12: ='aanvoer gewas'!D20+'aanvoer mest'!J18+'aanvoer compost'!J18+'aanvoer groenbemesters'!E17 -> 
C14: gemiddelde jaarlijks afbraak | D14: =IF(basis!C15<23,(basis!C15/100*10)*0.3*(-0.37*LN(basis!C15)+1.8398)*10^6*0.0487*basis!C15^-0.453*0.57,3145.513) -> 
C17: resultaat organische stofbalans: | D17: =D12-D14 -> 
C21: <<<< terug naar begin | D21: <<terug | E21: totaal overzicht>>
B23: Heeft u een tekort op de balans? Lees in de tabel hiernaast af of dit tekort op de lange termijn te hoog wordt. (Lees af bij het OS% van het perceel).
F40: organische stofbalans (6/7)

Sheet totaal overzicht OSBalans
B1: organische stofbalans
B2: ="perceel: "&basis!C13 -> perceel:
C4: gewasaanvoer | E4: aanvoer mest | H4: aanvoer compost | K4: aanvoer groenbemester | M4: totaal
D5: eff.org.stof per hectare | E5: soort mest | F5: ton per ha | G5: eff.org.stof per hectare | H5: soort compost | I5: ton per ha | J5: eff.org.stof per hectare | K5: soort groenbem. | L5: eff.org.stof per hectare | M5: eff.org.stof per hectare
B6: ='aanvoer gewas'!B10 -> 2012 | C6: =IF('aanvoer gewas'!C10="","",'aanvoer gewas'!C10) ->  | D6: =IF(C6="",0,VLOOKUP(C6,tabellen!E$3:F$197,2)) -> 0 | E6: =IF(AND('aanvoer mest'!D8="",'aanvoer mest'!G8=""),"",IF(AND('aanvoer mest'!D8="",'aanvoer mest'!G8<>""),'aanvoer mest'!G8,IF(AND('aanvoer mest'!G8="",'aanvoer mest'!D8<>""),'aanvoer mest'!D8,'aanvoer mest'!D8&" / "&'aanvoer mest'!G8))) ->  | F6: =IF(AND('aanvoer mest'!D8="",'aanvoer mest'!G8=""),"",IF(AND('aanvoer mest'!D8="",'aanvoer mest'!G8<>""),'aanvoer mest'!H8,IF(AND('aanvoer mest'!G8="",'aanvoer mest'!D8<>""),'aanvoer mest'!E8,'aanvoer mest'!E8&" / "&'aanvoer mest'!H8))) ->  | G6: =IF(E6="",0,'aanvoer mest'!J8) -> 0 | H6: =IF(AND('aanvoer compost'!D8="",'aanvoer compost'!G8=""),"",IF(AND('aanvoer compost'!D8="",'aanvoer compost'!G8<>""),'aanvoer compost'!G8,IF(AND('aanvoer compost'!G8="",'aanvoer compost'!D8<>""),'aanvoer compost'!D8,'aanvoer compost'!D8&" / "&'aanvoer compost'!G8))) ->  | I6: =IF(AND('aanvoer compost'!D8="",'aanvoer compost'!G8=""),"",IF(AND('aanvoer compost'!D8="",'aanvoer compost'!G8<>""),'aanvoer compost'!H8,IF(AND('aanvoer compost'!G8="",'aanvoer compost'!D8<>""),'aanvoer compost'!E8,'aanvoer compost'!E8&" / "&'aanvoer compost'!H8))) ->  | J6: =IF(H6="",0,'aanvoer compost'!J8) -> 0 | K6: =IF('aanvoer groenbemesters'!D7="","",'aanvoer groenbemesters'!D7) ->  | L6: =IF(K6="",0,VLOOKUP(K6,tabellen!X$3:Y$22,2)) -> 0 | M6: =IF(D6+G6+J6+L6=0,"",D6+G6+J6+L6) -> 
B7: ='aanvoer gewas'!B11 -> 2011 | C7: =IF('aanvoer gewas'!C11="","",'aanvoer gewas'!C11) ->  | D7: =IF(C7="",0,VLOOKUP(C7,tabellen!E$3:F$197,2)) -> 0 | E7: =IF(AND('aanvoer mest'!D9="",'aanvoer mest'!G9=""),"",IF(AND('aanvoer mest'!D9="",'aanvoer mest'!G9<>""),'aanvoer mest'!G9,IF(AND('aanvoer mest'!G9="",'aanvoer mest'!D9<>""),'aanvoer mest'!D9,'aanvoer mest'!D9&" / "&'aanvoer mest'!G9))) ->  | F7: =IF(AND('aanvoer mest'!D9="",'aanvoer mest'!G9=""),"",IF(AND('aanvoer mest'!D9="",'aanvoer mest'!G9<>""),'aanvoer mest'!H9,IF(AND('aanvoer mest'!G9="",'aanvoer mest'!D9<>""),'aanvoer mest'!E9,'aanvoer mest'!E9&" / "&'aanvoer mest'!H9))) ->  | G7: =IF(E7="",0,'aanvoer mest'!J9) -> 0 | H7: =IF(AND('aanvoer compost'!D9="",'aanvoer compost'!G9=""),"",IF(AND('aanvoer compost'!D9="",'aanvoer compost'!G9<>""),'aanvoer compost'!G9,IF(AND('aanvoer compost'!G9="",'aanvoer compost'!D9<>""),'aanvoer compost'!D9,'aanvoer compost'!D9&" / "&'aanvoer compost'!G9))) ->  | I7: =IF(AND('aanvoer compost'!D9="",'aanvoer compost'!G9=""),"",IF(AND('aanvoer compost'!D9="",'aanvoer compost'!G9<>""),'aanvoer compost'!H9,IF(AND('aanvoer compost'!G9="",'aanvoer compost'!D9<>""),'aanvoer compost'!E9,'aanvoer compost'!E9&" / "&'aanvoer compost'!H9))) ->  | J7: =IF(H7="",0,'aanvoer compost'!J9) -> 0 | K7: =IF('aanvoer groenbemesters'!D8="","",'aanvoer groenbemesters'!D8) ->  | L7: =IF(K7="",0,VLOOKUP(K7,tabellen!X$3:Y$22,2)) -> 0
B8: ='aanvoer gewas'!B12 -> 2010 | C8: =IF('aanvoer gewas'!C12="","",'aanvoer gewas'!C12) ->  | D8: =IF(C8="",0,VLOOKUP(C8,tabellen!E$3:F$197,2)) -> 0 | E8: =IF(AND('aanvoer mest'!D10="",'aanvoer mest'!G10=""),"",IF(AND('aanvoer mest'!D10="",'aanvoer mest'!G10<>""),'aanvoer mest'!G10,IF(AND('aanvoer mest'!G10="",'aanvoer mest'!D10<>""),'aanvoer mest'!D10,'aanvoer mest'!D10&" / "&'aanvoer mest'!G10))) ->  | F8: =IF(AND('aanvoer mest'!D10="",'aanvoer mest'!G10=""),"",IF(AND('aanvoer mest'!D10="",'aanvoer mest'!G10<>""),'aanvoer mest'!H10,IF(AND('aanvoer mest'!G10="",'aanvoer mest'!D10<>""),'aanvoer mest'!E10,'aanvoer mest'!E10&" / "&'aanvoer mest'!H10))) ->  | G8: =IF(E8="",0,'aanvoer mest'!J10) -> 0 | H8: =IF(AND('aanvoer compost'!D10="",'aanvoer compost'!G10=""),"",IF(AND('aanvoer compost'!D10="",'aanvoer compost'!G10<>""),'aanvoer compost'!G10,IF(AND('aanvoer compost'!G10="",'aanvoer compost'!D10<>""),'aanvoer compost'!D10,'aanvoer compost'!D10&" / "&'aanvoer compost'!G10))) ->  | I8: =IF(AND('aanvoer compost'!D10="",'aanvoer compost'!G10=""),"",IF(AND('aanvoer compost'!D10="",'aanvoer compost'!G10<>""),'aanvoer compost'!H10,IF(AND('aanvoer compost'!G10="",'aanvoer compost'!D10<>""),'aanvoer compost'!E10,'aanvoer compost'!E10&" / "&'aanvoer compost'!H10))) ->  | J8: =IF(H8="",0,'aanvoer compost'!J10) -> 0 | K8: =IF('aanvoer groenbemesters'!D9="","",'aanvoer groenbemesters'!D9) ->  | L8: =IF(K8="",0,VLOOKUP(K8,tabellen!X$3:Y$22,2)) -> 0
B9: ='aanvoer gewas'!B13 -> 2009 | C9: =IF('aanvoer gewas'!C13="","",'aanvoer gewas'!C13) ->  | D9: =IF(C9="",0,VLOOKUP(C9,tabellen!E$3:F$197,2)) -> 0 | E9: =IF(AND('aanvoer mest'!D11="",'aanvoer mest'!G11=""),"",IF(AND('aanvoer mest'!D11="",'aanvoer mest'!G11<>""),'aanvoer mest'!G11,IF(AND('aanvoer mest'!G11="",'aanvoer mest'!D11<>""),'aanvoer mest'!D11,'aanvoer mest'!D11&" / "&'aanvoer mest'!G11))) ->  | F9: =IF(AND('aanvoer mest'!D11="",'aanvoer mest'!G11=""),"",IF(AND('aanvoer mest'!D11="",'aanvoer mest'!G11<>""),'aanvoer mest'!H11,IF(AND('aanvoer mest'!G11="",'aanvoer mest'!D11<>""),'aanvoer mest'!E11,'aanvoer mest'!E11&" / "&'aanvoer mest'!H11))) ->  | G9: =IF(E9="",0,'aanvoer mest'!J11) -> 0 | H9: =IF(AND('aanvoer compost'!D11="",'aanvoer compost'!G11=""),"",IF(AND('aanvoer compost'!D11="",'aanvoer compost'!G11<>""),'aanvoer compost'!G11,IF(AND('aanvoer compost'!G11="",'aanvoer compost'!D11<>""),'aanvoer compost'!D11,'aanvoer compost'!D11&" / "&'aanvoer compost'!G11))) ->  | I9: =IF(AND('aanvoer compost'!D11="",'aanvoer compost'!G11=""),"",IF(AND('aanvoer compost'!D11="",'aanvoer compost'!G11<>""),'aanvoer compost'!H11,IF(AND('aanvoer compost'!G11="",'aanvoer compost'!D11<>""),'aanvoer compost'!E11,'aanvoer compost'!E11&" / "&'aanvoer compost'!H11))) ->  | J9: =IF(H9="",0,'aanvoer compost'!J11) -> 0 | K9: =IF('aanvoer groenbemesters'!D10="","",'aanvoer groenbemesters'!D10) ->  | L9: =IF(K9="",0,VLOOKUP(K9,tabellen!X$3:Y$22,2)) -> 0
B10: ='aanvoer gewas'!B14 -> 2008 | C10: =IF('aanvoer gewas'!C14="","",'aanvoer gewas'!C14) ->  | D10: =IF(C10="",0,VLOOKUP(C10,tabellen!E$3:F$197,2)) -> 0 | E10: =IF(AND('aanvoer mest'!D12="",'aanvoer mest'!G12=""),"",IF(AND('aanvoer mest'!D12="",'aanvoer mest'!G12<>""),'aanvoer mest'!G12,IF(AND('aanvoer mest'!G12="",'aanvoer mest'!D12<>""),'aanvoer mest'!D12,'aanvoer mest'!D12&" / "&'aanvoer mest'!G12))) ->  | F10: =IF(AND('aanvoer mest'!D12="",'aanvoer mest'!G12=""),"",IF(AND('aanvoer mest'!D12="",'aanvoer mest'!G12<>""),'aanvoer mest'!H12,IF(AND('aanvoer mest'!G12="",'aanvoer mest'!D12<>""),'aanvoer mest'!E12,'aanvoer mest'!E12&" / "&'aanvoer mest'!H12))) ->  | G10: =IF(E10="",0,'aanvoer mest'!J12) -> 0 | H10: =IF(AND('aanvoer compost'!D12="",'aanvoer compost'!G12=""),"",IF(AND('aanvoer compost'!D12="",'aanvoer compost'!G12<>""),'aanvoer compost'!G12,IF(AND('aanvoer compost'!G12="",'aanvoer compost'!D12<>""),'aanvoer compost'!D12,'aanvoer compost'!D12&" / "&'aanvoer compost'!G12))) ->  | I10: =IF(AND('aanvoer compost'!D12="",'aanvoer compost'!G12=""),"",IF(AND('aanvoer compost'!D12="",'aanvoer compost'!G12<>""),'aanvoer compost'!H12,IF(AND('aanvoer compost'!G12="",'aanvoer compost'!D12<>""),'aanvoer compost'!E12,'aanvoer compost'!E12&" / "&'aanvoer compost'!H12))) ->  | J10: =IF(H10="",0,'aanvoer compost'!J12) -> 0 | K10: =IF('aanvoer groenbemesters'!D11="","",'aanvoer groenbemesters'!D11) ->  | L10: =IF(K10="",0,VLOOKUP(K10,tabellen!X$3:Y$22,2)) -> 0
B11: ='aanvoer gewas'!B15 -> 2007 | C11: =IF('aanvoer gewas'!C15="","",'aanvoer gewas'!C15) ->  | D11: =IF(C11="",0,VLOOKUP(C11,tabellen!E$3:F$197,2)) -> 0 | E11: =IF(AND('aanvoer mest'!D13="",'aanvoer mest'!G13=""),"",IF(AND('aanvoer mest'!D13="",'aanvoer mest'!G13<>""),'aanvoer mest'!G13,IF(AND('aanvoer mest'!G13="",'aanvoer mest'!D13<>""),'aanvoer mest'!D13,'aanvoer mest'!D13&" / "&'aanvoer mest'!G13))) ->  | F11: =IF(AND('aanvoer mest'!D13="",'aanvoer mest'!G13=""),"",IF(AND('aanvoer mest'!D13="",'aanvoer mest'!G13<>""),'aanvoer mest'!H13,IF(AND('aanvoer mest'!G13="",'aanvoer mest'!D13<>""),'aanvoer mest'!E13,'aanvoer mest'!E13&" / "&'aanvoer mest'!H13))) ->  | G11: =IF(E11="",0,'aanvoer mest'!J13) -> 0 | H11: =IF(AND('aanvoer compost'!D13="",'aanvoer compost'!G13=""),"",IF(AND('aanvoer compost'!D13="",'aanvoer compost'!G13<>""),'aanvoer compost'!G13,IF(AND('aanvoer compost'!G13="",'aanvoer compost'!D13<>""),'aanvoer compost'!D13,'aanvoer compost'!D13&" / "&'aanvoer compost'!G13))) ->  | I11: =IF(AND('aanvoer compost'!D13="",'aanvoer compost'!G13=""),"",IF(AND('aanvoer compost'!D13="",'aanvoer compost'!G13<>""),'aanvoer compost'!H13,IF(AND('aanvoer compost'!G13="",'aanvoer compost'!D13<>""),'aanvoer compost'!E13,'aanvoer compost'!E13&" / "&'aanvoer compost'!H13))) ->  | J11: =IF(H11="",0,'aanvoer compost'!J13) -> 0 | K11: =IF('aanvoer groenbemesters'!D12="","",'aanvoer groenbemesters'!D12) ->  | L11: =IF(K11="",0,VLOOKUP(K11,tabellen!X$3:Y$22,2)) -> 0
B12: ='aanvoer gewas'!B16 -> 2006 | C12: =IF('aanvoer gewas'!C16="","",'aanvoer gewas'!C16) ->  | D12: =IF(C12="",0,VLOOKUP(C12,tabellen!E$3:F$197,2)) -> 0 | E12: =IF(AND('aanvoer mest'!D14="",'aanvoer mest'!G14=""),"",IF(AND('aanvoer mest'!D14="",'aanvoer mest'!G14<>""),'aanvoer mest'!G14,IF(AND('aanvoer mest'!G14="",'aanvoer mest'!D14<>""),'aanvoer mest'!D14,'aanvoer mest'!D14&" / "&'aanvoer mest'!G14))) ->  | F12: =IF(AND('aanvoer mest'!D14="",'aanvoer mest'!G14=""),"",IF(AND('aanvoer mest'!D14="",'aanvoer mest'!G14<>""),'aanvoer mest'!H14,IF(AND('aanvoer mest'!G14="",'aanvoer mest'!D14<>""),'aanvoer mest'!E14,'aanvoer mest'!E14&" / "&'aanvoer mest'!H14))) ->  | G12: =IF(E12="",0,'aanvoer mest'!J14) -> 0 | H12: =IF(AND('aanvoer compost'!D14="",'aanvoer compost'!G14=""),"",IF(AND('aanvoer compost'!D14="",'aanvoer compost'!G14<>""),'aanvoer compost'!G14,IF(AND('aanvoer compost'!G14="",'aanvoer compost'!D14<>""),'aanvoer compost'!D14,'aanvoer compost'!D14&" / "&'aanvoer compost'!G14))) ->  | I12: =IF(AND('aanvoer compost'!D14="",'aanvoer compost'!G14=""),"",IF(AND('aanvoer compost'!D14="",'aanvoer compost'!G14<>""),'aanvoer compost'!H14,IF(AND('aanvoer compost'!G14="",'aanvoer compost'!D14<>""),'aanvoer compost'!E14,'aanvoer compost'!E14&" / "&'aanvoer compost'!H14))) ->  | J12: =IF(H12="",0,'aanvoer compost'!J14) -> 0 | K12: =IF('aanvoer groenbemesters'!D13="","",'aanvoer groenbemesters'!D13) ->  | L12: =IF(K12="",0,VLOOKUP(K12,tabellen!X$3:Y$22,2)) -> 0
B13: ='aanvoer gewas'!B17 -> 2005 | C13: =IF('aanvoer gewas'!C17="","",'aanvoer gewas'!C17) ->  | D13: =IF(C13="",0,VLOOKUP(C13,tabellen!E$3:F$197,2)) -> 0 | E13: =IF(AND('aanvoer mest'!D15="",'aanvoer mest'!G15=""),"",IF(AND('aanvoer mest'!D15="",'aanvoer mest'!G15<>""),'aanvoer mest'!G15,IF(AND('aanvoer mest'!G15="",'aanvoer mest'!D15<>""),'aanvoer mest'!D15,'aanvoer mest'!D15&" / "&'aanvoer mest'!G15))) ->  | F13: =IF(AND('aanvoer mest'!D15="",'aanvoer mest'!G15=""),"",IF(AND('aanvoer mest'!D15="",'aanvoer mest'!G15<>""),'aanvoer mest'!H15,IF(AND('aanvoer mest'!G15="",'aanvoer mest'!D15<>""),'aanvoer mest'!E15,'aanvoer mest'!E15&" / "&'aanvoer mest'!H15))) ->  | G13: =IF(E13="",0,'aanvoer mest'!J15) -> 0 | H13: =IF(AND('aanvoer compost'!D15="",'aanvoer compost'!G15=""),"",IF(AND('aanvoer compost'!D15="",'aanvoer compost'!G15<>""),'aanvoer compost'!G15,IF(AND('aanvoer compost'!G15="",'aanvoer compost'!D15<>""),'aanvoer compost'!D15,'aanvoer compost'!D15&" / "&'aanvoer compost'!G15))) ->  | I13: =IF(AND('aanvoer compost'!D15="",'aanvoer compost'!G15=""),"",IF(AND('aanvoer compost'!D15="",'aanvoer compost'!G15<>""),'aanvoer compost'!H15,IF(AND('aanvoer compost'!G15="",'aanvoer compost'!D15<>""),'aanvoer compost'!E15,'aanvoer compost'!E15&" / "&'aanvoer compost'!H15))) ->  | J13: =IF(H13="",0,'aanvoer compost'!J15) -> 0 | K13: =IF('aanvoer groenbemesters'!D14="","",'aanvoer groenbemesters'!D14) ->  | L13: =IF(K13="",0,VLOOKUP(K13,tabellen!X$3:Y$22,2)) -> 0
B14: ='aanvoer gewas'!B18 -> 2004 | C14: =IF('aanvoer gewas'!C18="","",'aanvoer gewas'!C18) ->  | D14: =IF(C14="",0,VLOOKUP(C14,tabellen!E$3:F$197,2)) -> 0 | E14: =IF(AND('aanvoer mest'!D16="",'aanvoer mest'!G16=""),"",IF(AND('aanvoer mest'!D16="",'aanvoer mest'!G16<>""),'aanvoer mest'!G16,IF(AND('aanvoer mest'!G16="",'aanvoer mest'!D16<>""),'aanvoer mest'!D16,'aanvoer mest'!D16&" / "&'aanvoer mest'!G16))) ->  | F14: =IF(AND('aanvoer mest'!D16="",'aanvoer mest'!G16=""),"",IF(AND('aanvoer mest'!D16="",'aanvoer mest'!G16<>""),'aanvoer mest'!H16,IF(AND('aanvoer mest'!G16="",'aanvoer mest'!D16<>""),'aanvoer mest'!E16,'aanvoer mest'!E16&" / "&'aanvoer mest'!H16))) ->  | G14: =IF(E14="",0,'aanvoer mest'!J16) -> 0 | H14: =IF(AND('aanvoer compost'!D16="",'aanvoer compost'!G16=""),"",IF(AND('aanvoer compost'!D16="",'aanvoer compost'!G16<>""),'aanvoer compost'!G16,IF(AND('aanvoer compost'!G16="",'aanvoer compost'!D16<>""),'aanvoer compost'!D16,'aanvoer compost'!D16&" / "&'aanvoer compost'!G16))) ->  | I14: =IF(AND('aanvoer compost'!D16="",'aanvoer compost'!G16=""),"",IF(AND('aanvoer compost'!D16="",'aanvoer compost'!G16<>""),'aanvoer compost'!H16,IF(AND('aanvoer compost'!G16="",'aanvoer compost'!D16<>""),'aanvoer compost'!E16,'aanvoer compost'!E16&" / "&'aanvoer compost'!H16))) ->  | J14: =IF(H14="",0,'aanvoer compost'!J16) -> 0 | K14: =IF('aanvoer groenbemesters'!D15="","",'aanvoer groenbemesters'!D15) ->  | L14: =IF(K14="",0,VLOOKUP(K14,tabellen!X$3:Y$22,2)) -> 0
B15: ='aanvoer gewas'!B19 -> 2003 | C15: =IF('aanvoer gewas'!C19="","",'aanvoer gewas'!C19) ->  | D15: =IF(C15="",0,VLOOKUP(C15,tabellen!E$3:F$197,2)) -> 0 | E15: =IF(AND('aanvoer mest'!D17="",'aanvoer mest'!G17=""),"",IF(AND('aanvoer mest'!D17="",'aanvoer mest'!G17<>""),'aanvoer mest'!G17,IF(AND('aanvoer mest'!G17="",'aanvoer mest'!D17<>""),'aanvoer mest'!D17,'aanvoer mest'!D17&" / "&'aanvoer mest'!G17))) ->  | F15: =IF(AND('aanvoer mest'!D17="",'aanvoer mest'!G17=""),"",IF(AND('aanvoer mest'!D17="",'aanvoer mest'!G17<>""),'aanvoer mest'!H17,IF(AND('aanvoer mest'!G17="",'aanvoer mest'!D17<>""),'aanvoer mest'!E17,'aanvoer mest'!E17&" / "&'aanvoer mest'!H17))) ->  | G15: =IF(E15="",0,'aanvoer mest'!J17) -> 0 | H15: =IF(AND('aanvoer compost'!D17="",'aanvoer compost'!G17=""),"",IF(AND('aanvoer compost'!D17="",'aanvoer compost'!G17<>""),'aanvoer compost'!G17,IF(AND('aanvoer compost'!G17="",'aanvoer compost'!D17<>""),'aanvoer compost'!D17,'aanvoer compost'!D17&" / "&'aanvoer compost'!G17))) ->  | I15: =IF(AND('aanvoer compost'!D17="",'aanvoer compost'!G17=""),"",IF(AND('aanvoer compost'!D17="",'aanvoer compost'!G17<>""),'aanvoer compost'!H17,IF(AND('aanvoer compost'!G17="",'aanvoer compost'!D17<>""),'aanvoer compost'!E17,'aanvoer compost'!E17&" / "&'aanvoer compost'!H17))) ->  | J15: =IF(H15="",0,'aanvoer compost'!J17) -> 0 | K15: =IF('aanvoer groenbemesters'!D16="","",'aanvoer groenbemesters'!D16) ->  | L15: =IF(K15="",0,VLOOKUP(K15,tabellen!X$3:Y$22,2)) -> 0
C16: gemiddelde | D16: ='aanvoer gewas'!D20 ->  | F16: gemiddelde | G16: ='aanvoer mest'!J18 ->  | I16: gemiddelde | J16: ='aanvoer compost'!J18 ->  | K16: gemiddelde | L16: ='aanvoer groenbemesters'!E17 ->  | M16: =AVERAGE(M6:M15) -> 
K18: jaarlijkse aanvoer per hectare | M18: =AVERAGE(M6:M15) -> 
K19: ="jaarlijkse afbraak van organische stof bij "&basis!C15&"% organische stof" -> jaarlijkse afbraak van organische stof bij % organische stof | M19: =resultaat!D14 -> 
K21: resultaat (aanvoer-afbraak) | M21: =M18-M19 -> 
C23: <<<< terug naar begin | F23: <<terug | J23: naar overzicht N-levering>>
B24: Disclaimer: Dit advies is met de grootst mogelijke zorgvuldigheid samengesteld. Desondanks kan dit advies informatie bevatten die incorrect en/of incompleet is. Aan de inhoud ervan kunnen geen rechten worden ontleend. HLB aanvaardt geen aansprakelijkheid voor directe of indirecte schade die het gevolg is van het gebruik van informatie van dit advies. De inhoud van dit advies mag niet worden gebruikt voor publicatie zonder toestemming van HLB.

Sheet totaal overzicht Nmineralisatie
B1: N-mineralisatie
B2: ="perceel: "&basis!C13 -> perceel:
D4: N-levering uit aanvoer voorgaand jaar | N4: N-levering uit aanvoer huidig jaar | T4: totale N-levering tijdens groeiseizoen
D5: voorvrucht | F5: aanvoer mest | I5: aanvoer compost | L5: aanvoer groenbemester | N5: aanvoer mest | Q5: aanvoer compost
C6: gewas | D6: voorvrucht | E6: beschikbare N (kg/ha) | F6: mest najaar | G6: ton per ha | H6: beschikbare N (kg/ha) | I6: compost najaar | J6: ton per ha | K6: beschikbare N (kg/ha) | L6: groen-bemester najaar | M6: beschikbare N (kg/ha) | N6: mest voorjaar | O6: ton per ha | P6: beschikbare N (kg/ha) | Q6: compost voorjaar | R6: ton per ha | S6: beschikbare N (kg/ha) | T6: beschikbare N (excl. bodem org. stof) (kg/ha) | U6: beschikbare N (incl. bodem org. stof) (kg/ha)
B7: ='aanvoer gewas'!B10 -> 2012 | C7: =IF('aanvoer gewas'!C10="","",'aanvoer gewas'!C10) ->  | D7: =IF(tabellen!AD$1=FALSE,IF(C7="","",IF(C8="",'aanvoer gewas'!C10,IF(C9="",'aanvoer gewas'!C11,IF(C10="",'aanvoer gewas'!C12,IF(C11="",'aanvoer gewas'!C13,IF(C12="",'aanvoer gewas'!C14,IF(C13="",'aanvoer gewas'!C15,IF(C14="",'aanvoer gewas'!C16,IF(C15="",'aanvoer gewas'!C17,IF(C16="",'aanvoer gewas'!C18,IF(C16<>"",'aanvoer gewas'!C19,0))))))))))),IF(C8="",IF(C7="",0,'aanvoer gewas'!C10),IF(C8="",0,'aanvoer gewas'!C11))) -> 0 | E7: =IF(D7="","",'aanvoer gewas'!E10) -> 0 | F7: =IF(tabellen!AD$1=FALSE,IF(C7="","",IF(C8="",'aanvoer mest'!G8,IF(C9="",'aanvoer mest'!G9,IF(C10="",'aanvoer mest'!G10,IF(C11="",'aanvoer mest'!G11,IF(C12="",'aanvoer mest'!G12,IF(C13="",'aanvoer mest'!G13,IF(C14="",'aanvoer mest'!G14,IF(C15="",'aanvoer mest'!G15,IF(C16="",'aanvoer mest'!G16,IF(C16<>"",'aanvoer mest'!G17,""))))))))))),IF(C8="",IF(C7="",0,'aanvoer mest'!G8),IF(C8="",0,'aanvoer mest'!G9))) -> 0 | G7: =IF(tabellen!AD$1=FALSE,IF(C7="","",IF(C8="",'aanvoer mest'!H8,IF(C9="",'aanvoer mest'!H9,IF(C10="",'aanvoer mest'!H10,IF(C11="",'aanvoer mest'!H11,IF(C12="",'aanvoer mest'!H12,IF(C13="",'aanvoer mest'!H13,IF(C14="",'aanvoer mest'!H14,IF(C15="",'aanvoer mest'!H15,IF(C16="",'aanvoer mest'!H16,IF(C16<>"",'aanvoer mest'!H17,""))))))))))),IF(C8="",IF(C7="",0,'aanvoer mest'!H8),IF(C8="",0,'aanvoer mest'!H9))) -> 0 | H7: =IF(tabellen!AD1=FALSE,IF(AND('aanvoer mest'!C8="",'aanvoer mest'!G8=""),"",IF(AND('aanvoer mest'!C9="",'aanvoer mest'!G8<>""),VLOOKUP('aanvoer mest'!G8,tabellen!I$3:V$10,5)*'aanvoer mest'!H8*'aanvoer mest'!I8,IF(AND('aanvoer mest'!C10="",'aanvoer mest'!G9<>""),VLOOKUP('aanvoer mest'!G9,tabellen!I$3:N$24,5)*'aanvoer mest'!H9*'aanvoer mest'!I9,IF(AND('aanvoer mest'!C11="",'aanvoer mest'!G10<>""),VLOOKUP('aanvoer mest'!G10,tabellen!I$3:N$24,5)*'aanvoer mest'!H10*'aanvoer mest'!I10,IF(AND('aanvoer mest'!C12="",'aanvoer mest'!G11<>""),VLOOKUP('aanvoer mest'!G11,tabellen!I$3:N$24,5)*'aanvoer mest'!H11*'aanvoer mest'!I11,IF(AND('aanvoer mest'!C13="",'aanvoer mest'!G12<>""),VLOOKUP('aanvoer mest'!G12,tabellen!I$3:N$24,5)*'aanvoer mest'!H12*'aanvoer mest'!I12,IF(AND('aanvoer mest'!C14="",'aanvoer mest'!G13<>""),VLOOKUP('aanvoer mest'!G13,tabellen!I$3:N$24,5)*'aanvoer mest'!H13*'aanvoer mest'!I13,IF(AND('aanvoer mest'!C15="",'aanvoer mest'!G14<>""),VLOOKUP('aanvoer mest'!G14,tabellen!I$3:N$24,5)*'aanvoer mest'!H14*'aanvoer mest'!I14,IF(AND('aanvoer mest'!C16="",'aanvoer mest'!G15<>""),VLOOKUP('aanvoer mest'!G15,tabellen!I$3:N$24,5)*'aanvoer mest'!H15*'aanvoer mest'!I15,IF(AND('aanvoer mest'!C17="",'aanvoer mest'!G16<>""),VLOOKUP('aanvoer mest'!G16,tabellen!I$3:N$24,5)*'aanvoer mest'!H16*'aanvoer mest'!I16,IF(AND('aanvoer mest'!C17<>"",'aanvoer mest'!G17<>""),VLOOKUP('aanvoer mest'!G17,tabellen!I$3:N$24,5)*'aanvoer mest'!H17*'aanvoer mest'!I17,0))))))))))),IF('aanvoer mest'!C9="",IF('aanvoer mest'!G8="",0,VLOOKUP('aanvoer mest'!G8,tabellen!I$3:N$24,5)*'aanvoer mest'!H8*'aanvoer mest'!I8),IF('aanvoer mest'!G9="",0,VLOOKUP('aanvoer mest'!G9,tabellen!I$3:N$24,5)*'aanvoer mest'!H9*'aanvoer mest'!I9))) -> 0 | I7: =IF(tabellen!AD$1=FALSE,IF(C7="","",IF(C8="",'aanvoer compost'!G8,IF(C9="",'aanvoer compost'!G9,IF(C10="",'aanvoer compost'!G10,IF(C11="",'aanvoer compost'!G11,IF(C12="",'aanvoer compost'!G12,IF(C13="",'aanvoer compost'!G13,IF(C14="",'aanvoer compost'!G14,IF(C15="",'aanvoer compost'!G15,IF(C16="",'aanvoer compost'!G16,IF(C16<>"",'aanvoer compost'!G17,""))))))))))),IF(C8="",IF(C7="",0,'aanvoer compost'!G8),IF(C8="",0,'aanvoer compost'!G9))) -> 0 | J7: =IF(tabellen!AD$1=FALSE,IF(C7="","",IF(C8="",'aanvoer compost'!H8,IF(C9="",'aanvoer compost'!H9,IF(C10="",'aanvoer compost'!H10,IF(C11="",'aanvoer compost'!H11,IF(C12="",'aanvoer compost'!H12,IF(C13="",'aanvoer compost'!H13,IF(C14="",'aanvoer compost'!H14,IF(C15="",'aanvoer compost'!H15,IF(C16="",'aanvoer compost'!H16,IF(C16<>"",'aanvoer compost'!H17,""))))))))))),IF(C8="",IF(C7="",0,'aanvoer compost'!H8),IF(C8="",0,'aanvoer compost'!H9))) -> 0 | K7: =IF(tabellen!AD1=FALSE,IF(AND('aanvoer compost'!C8="",'aanvoer compost'!G8=""),"",IF(AND('aanvoer compost'!C9="",'aanvoer compost'!G8<>""),VLOOKUP('aanvoer compost'!G8,tabellen!I$3:V$10,5)*'aanvoer compost'!H8*'aanvoer compost'!I8,IF(AND('aanvoer compost'!C10="",'aanvoer compost'!G9<>""),VLOOKUP('aanvoer compost'!G9,tabellen!Q$3:V$12,5)*'aanvoer compost'!H9*'aanvoer compost'!I9,IF(AND('aanvoer compost'!C11="",'aanvoer compost'!G10<>""),VLOOKUP('aanvoer compost'!G10,tabellen!Q$3:V$12,5)*'aanvoer compost'!H10*'aanvoer compost'!I10,IF(AND('aanvoer compost'!C12="",'aanvoer compost'!G11<>""),VLOOKUP('aanvoer compost'!G11,tabellen!Q$3:V$12,5)*'aanvoer compost'!H11*'aanvoer compost'!I11,IF(AND('aanvoer compost'!C13="",'aanvoer compost'!G12<>""),VLOOKUP('aanvoer compost'!G12,tabellen!Q$3:V$12,5)*'aanvoer compost'!H12*'aanvoer compost'!I12,IF(AND('aanvoer compost'!C14="",'aanvoer compost'!G13<>""),VLOOKUP('aanvoer compost'!G13,tabellen!Q$3:V$12,5)*'aanvoer compost'!H13*'aanvoer compost'!I13,IF(AND('aanvoer compost'!C15="",'aanvoer compost'!G14<>""),VLOOKUP('aanvoer compost'!G14,tabellen!Q$3:V$12,5)*'aanvoer compost'!H14*'aanvoer compost'!I14,IF(AND('aanvoer compost'!C16="",'aanvoer compost'!G15<>""),VLOOKUP('aanvoer compost'!G15,tabellen!Q$3:V$12,5)*'aanvoer compost'!H15*'aanvoer compost'!I15,IF(AND('aanvoer compost'!C17="",'aanvoer compost'!G16<>""),VLOOKUP('aanvoer compost'!G16,tabellen!Q$3:V$12,5)*'aanvoer compost'!H16*'aanvoer compost'!I16,IF(AND('aanvoer compost'!C17<>"",'aanvoer compost'!G17<>""),VLOOKUP('aanvoer compost'!G17,tabellen!Q$3:V$12,5)*'aanvoer compost'!H17*'aanvoer compost'!I17,0))))))))))),IF('aanvoer compost'!C9="",IF('aanvoer compost'!G8="",0,VLOOKUP('aanvoer compost'!G8,tabellen!Q$3:V$12,5)*'aanvoer compost'!H8*'aanvoer compost'!I8),IF('aanvoer compost'!G9="",0,VLOOKUP('aanvoer compost'!G9,tabellen!Q$3:V$12,5)*'aanvoer compost'!H9*'aanvoer compost'!I9))) -> 0 | L7: =IF(tabellen!AD$1=FALSE,IF(C7="","",IF(C8="",'aanvoer groenbemesters'!D7,IF(C9="",'aanvoer groenbemesters'!D8,IF(C10="",'aanvoer groenbemesters'!D9,IF(C11="",'aanvoer groenbemesters'!D10,IF(C12="",'aanvoer groenbemesters'!D11,IF(C13="",'aanvoer groenbemesters'!D12,IF(C14="",'aanvoer groenbemesters'!D13,IF(C15="",'aanvoer groenbemesters'!D14,IF(C16="",'aanvoer groenbemesters'!D15,IF(C16<>"",'aanvoer groenbemesters'!D16,""))))))))))),IF(C8="",IF(C7="",0,'aanvoer groenbemesters'!D7),IF(C8="",0,'aanvoer groenbemesters'!D8))) -> 0 | M7: =IF('aanvoer gewas'!C10="","",'aanvoer groenbemesters'!F7) ->  | N7: =IF('aanvoer mest'!$D8="","",'aanvoer mest'!D8) ->  | O7: =IF('aanvoer mest'!$D8="","",'aanvoer mest'!E8) ->  | P7: =IF(N7="","",VLOOKUP(N7,tabellen!I$3:N$24,6)*'aanvoer mest'!E8*'aanvoer mest'!F8) ->  | Q7: =IF('aanvoer compost'!$D8="","",'aanvoer compost'!D8) ->  | R7: =IF('aanvoer compost'!$D8="","",'aanvoer compost'!E8) ->  | S7: =IF(Q7="",0,VLOOKUP(Q7,tabellen!Q$3:V$12,6)*'aanvoer compost'!E8*'aanvoer compost'!F8) -> 0 | T7: =IF(C7="","",E7+H7+K7+M7+P7+S7) ->  | U7: =IF(C7="","",((((basis!$C$15/100*10)*0.3*(-0.37*LN(basis!$C$15)+1.8398)*10^6)/20-((basis!$C$15/100*10)*0.3*(-0.37*LN(basis!$C$15)+1.8398)*10^6-(basis!$C$15/100*10)*0.3*(-0.37*LN(basis!$C$15)+1.8398)*10^6*(0.0487*basis!$C$15^-0.453)*EXP((0.0412*LN(basis!$C$15)-0.1726)*0)*0.57)/20)*0.75)+T7) -> 
B8: ='aanvoer gewas'!B11 -> 2011 | C8: =IF('aanvoer gewas'!C11="","",'aanvoer gewas'!C11) ->  | D8: =IF(C8="","",IF(tabellen!AD$1=FALSE,IF(C7="","",'aanvoer gewas'!C10),IF(C9="",'aanvoer gewas'!C$10,'aanvoer gewas'!C12))) ->  | E8: =IF(D8="","",'aanvoer gewas'!E11) ->  | F8: =IF(C8="","",IF(tabellen!AD$1=FALSE,IF(C7="","",'aanvoer mest'!G8),IF(C9="",'aanvoer mest'!G$8,'aanvoer mest'!G10))) ->  | G8: =IF(C8="","",IF(tabellen!AD$1=FALSE,IF(C7="","",'aanvoer mest'!H8),IF(C9="",'aanvoer mest'!H$8,'aanvoer mest'!H10))) ->  | H8: =IF('aanvoer mest'!C9="","",IF(tabellen!AD$1=FALSE,IF('aanvoer mest'!C8="","",IF('aanvoer mest'!C8="",IF('aanvoer mest'!G8="",0,VLOOKUP('aanvoer mest'!G8,tabellen!I2:N23,5)*'aanvoer mest'!H8*'aanvoer mest'!I8)+VLOOKUP('aanvoer mest'!C8,tabellen!I2:N23,5)*'aanvoer mest'!E8*'aanvoer mest'!F8,IF('aanvoer mest'!G8="",0,VLOOKUP('aanvoer mest'!G8,tabellen!I$3:N$24,5)*'aanvoer mest'!H8*'aanvoer mest'!I8))),IF('aanvoer mest'!C10="",IF('aanvoer mest'!G$8="",0,VLOOKUP('aanvoer mest'!G$8,tabellen!I$3:N$24,5)*'aanvoer mest'!H$8*'aanvoer mest'!I$8),IF('aanvoer mest'!G10="",0,VLOOKUP('aanvoer mest'!G10,tabellen!I$3:N$24,5)*'aanvoer mest'!H10*'aanvoer mest'!I10)))) ->  | I8: =IF(C8="","",IF(tabellen!AD$1=FALSE,IF(C7="","",'aanvoer compost'!G8),IF(C9="",'aanvoer compost'!G$8,'aanvoer compost'!G10))) ->  | J8: =IF(C8="","",IF(tabellen!AD$1=FALSE,IF(C7="","",'aanvoer compost'!H8),IF(C9="",'aanvoer compost'!H$8,'aanvoer compost'!H10))) ->  | K8: =IF('aanvoer compost'!C9="","",IF(tabellen!AD$1=FALSE,IF('aanvoer compost'!C8="","",IF('aanvoer compost'!C8="",IF('aanvoer compost'!G8="",0,VLOOKUP('aanvoer compost'!G8,tabellen!I2:N23,5)*'aanvoer compost'!H8*'aanvoer compost'!I8)+VLOOKUP('aanvoer compost'!C8,tabellen!I2:N23,5)*'aanvoer compost'!E8*'aanvoer compost'!F8,IF('aanvoer compost'!G8="",0,VLOOKUP('aanvoer compost'!G8,tabellen!Q$3:V$12,5)*'aanvoer compost'!H8*'aanvoer compost'!I8))),IF('aanvoer compost'!C10="",IF('aanvoer compost'!G$8="",0,VLOOKUP('aanvoer compost'!G$8,tabellen!Q$3:V$12,5)*'aanvoer compost'!H$8*'aanvoer compost'!I$8),IF('aanvoer compost'!G10="",0,VLOOKUP('aanvoer compost'!G10,tabellen!Q$3:V$12,5)*'aanvoer compost'!H10*'aanvoer compost'!I10)))) ->  | L8: =IF(C8="","",IF(tabellen!AD$1=FALSE,IF(C7="","",'aanvoer groenbemesters'!D7),IF(C9="",'aanvoer groenbemesters'!D$7,'aanvoer groenbemesters'!D9))) ->  | M8: =IF('aanvoer gewas'!C11="","",'aanvoer groenbemesters'!F8) ->  | N8: =IF('aanvoer mest'!D9="","",'aanvoer mest'!D9) ->  | O8: =IF('aanvoer mest'!E9="","",'aanvoer mest'!E9) ->  | P8: =IF(N8="",0,VLOOKUP(N8,tabellen!I$3:N$24,6)*'aanvoer mest'!E9*'aanvoer mest'!F9) -> 0 | Q8: =IF('aanvoer compost'!$D9="","",'aanvoer compost'!D9) ->  | R8: =IF('aanvoer compost'!$D9="","",'aanvoer compost'!E9) ->  | S8: =IF(Q8="",0,VLOOKUP(Q8,tabellen!Q$3:V$12,6)*'aanvoer compost'!E9*'aanvoer compost'!F9) -> 0 | U8: =IF(C8="","",((((basis!$C$15/100*10)*0.3*(-0.37*LN(basis!$C$15)+1.8398)*10^6)/20-((basis!$C$15/100*10)*0.3*(-0.37*LN(basis!$C$15)+1.8398)*10^6-(basis!$C$15/100*10)*0.3*(-0.37*LN(basis!$C$15)+1.8398)*10^6*(0.0487*basis!$C$15^-0.453)*EXP((0.0412*LN(basis!$C$15)-0.1726)*0)*0.57)/20)*0.75)+T8) -> 
B9: ='aanvoer gewas'!B12 -> 2010 | C9: =IF('aanvoer gewas'!C12="","",'aanvoer gewas'!C12) ->  | D9: =IF(C9="","",IF(tabellen!AD$1=FALSE,IF(C8="","",'aanvoer gewas'!C11),IF(C10="",'aanvoer gewas'!C$10,'aanvoer gewas'!C13))) ->  | E9: =IF(D9="","",'aanvoer gewas'!E12) ->  | F9: =IF(C9="","",IF(tabellen!AD$1=FALSE,IF(C8="","",'aanvoer mest'!G9),IF(C10="",'aanvoer mest'!G$8,'aanvoer mest'!G11))) ->  | G9: =IF(C9="","",IF(tabellen!AD$1=FALSE,IF(C8="","",'aanvoer mest'!H9),IF(C10="",'aanvoer mest'!H$8,'aanvoer mest'!H11))) ->  | H9: =IF('aanvoer mest'!C10="","",IF(tabellen!AD$1=FALSE,IF('aanvoer mest'!C9="","",IF('aanvoer mest'!C9="",IF('aanvoer mest'!G9="",0,VLOOKUP('aanvoer mest'!G9,tabellen!I3:N24,5)*'aanvoer mest'!H9*'aanvoer mest'!I9)+VLOOKUP('aanvoer mest'!C9,tabellen!I3:N24,5)*'aanvoer mest'!E9*'aanvoer mest'!F9,IF('aanvoer mest'!G9="",0,VLOOKUP('aanvoer mest'!G9,tabellen!I$3:N$24,5)*'aanvoer mest'!H9*'aanvoer mest'!I9))),IF('aanvoer mest'!C11="",IF('aanvoer mest'!G$8="",0,VLOOKUP('aanvoer mest'!G$8,tabellen!I$3:N$24,5)*'aanvoer mest'!H$8*'aanvoer mest'!I$8),IF('aanvoer mest'!G11="",0,VLOOKUP('aanvoer mest'!G11,tabellen!I$3:N$24,5)*'aanvoer mest'!H11*'aanvoer mest'!I11)))) ->  | I9: =IF(C9="","",IF(tabellen!AD$1=FALSE,IF(C8="","",'aanvoer compost'!G9),IF(C10="",'aanvoer compost'!G$8,'aanvoer compost'!G11))) ->  | J9: =IF(C9="","",IF(tabellen!AD$1=FALSE,IF(C8="","",'aanvoer compost'!H9),IF(C10="",'aanvoer compost'!H$8,'aanvoer compost'!H11))) ->  | K9: =IF('aanvoer compost'!C10="","",IF(tabellen!AD$1=FALSE,IF('aanvoer compost'!C9="","",IF('aanvoer compost'!C9="",IF('aanvoer compost'!G9="",0,VLOOKUP('aanvoer compost'!G9,tabellen!I3:N24,5)*'aanvoer compost'!H9*'aanvoer compost'!I9)+VLOOKUP('aanvoer compost'!C9,tabellen!I3:N24,5)*'aanvoer compost'!E9*'aanvoer compost'!F9,IF('aanvoer compost'!G9="",0,VLOOKUP('aanvoer compost'!G9,tabellen!Q$3:V$12,5)*'aanvoer compost'!H9*'aanvoer compost'!I9))),IF('aanvoer compost'!C11="",IF('aanvoer compost'!G$8="",0,VLOOKUP('aanvoer compost'!G$8,tabellen!Q$3:V$12,5)*'aanvoer compost'!H$8*'aanvoer compost'!I$8),IF('aanvoer compost'!G11="",0,VLOOKUP('aanvoer compost'!G11,tabellen!Q$3:V$12,5)*'aanvoer compost'!H11*'aanvoer compost'!I11)))) ->  | L9: =IF(C9="","",IF(tabellen!AD$1=FALSE,IF(C8="","",'aanvoer groenbemesters'!D8),IF(C10="",'aanvoer groenbemesters'!D$7,'aanvoer groenbemesters'!D10))) ->  | M9: =IF('aanvoer gewas'!C12="","",'aanvoer groenbemesters'!F9) ->  | N9: =IF('aanvoer mest'!D10="","",'aanvoer mest'!D10) ->  | O9: =IF('aanvoer mest'!E10="","",'aanvoer mest'!E10) ->  | P9: =IF(N9="",0,VLOOKUP(N9,tabellen!I$3:N$24,6)*'aanvoer mest'!E10*'aanvoer mest'!F10) -> 0 | Q9: =IF('aanvoer compost'!$D10="","",'aanvoer compost'!D10) ->  | R9: =IF('aanvoer compost'!$D10="","",'aanvoer compost'!E10) ->  | S9: =IF(Q9="",0,VLOOKUP(Q9,tabellen!Q$3:V$12,6)*'aanvoer compost'!E10*'aanvoer compost'!F10) -> 0 | U9: =IF(C9="","",((((basis!$C$15/100*10)*0.3*(-0.37*LN(basis!$C$15)+1.8398)*10^6)/20-((basis!$C$15/100*10)*0.3*(-0.37*LN(basis!$C$15)+1.8398)*10^6-(basis!$C$15/100*10)*0.3*(-0.37*LN(basis!$C$15)+1.8398)*10^6*(0.0487*basis!$C$15^-0.453)*EXP((0.0412*LN(basis!$C$15)-0.1726)*0)*0.57)/20)*0.75)+T9) -> 
B10: ='aanvoer gewas'!B13 -> 2009 | C10: =IF('aanvoer gewas'!C13="","",'aanvoer gewas'!C13) ->  | D10: =IF(C10="","",IF(tabellen!AD$1=FALSE,IF(C9="","",'aanvoer gewas'!C12),IF(C11="",'aanvoer gewas'!C$10,'aanvoer gewas'!C14))) ->  | E10: =IF(D10="","",'aanvoer gewas'!E13) ->  | F10: =IF(C10="","",IF(tabellen!AD$1=FALSE,IF(C9="","",'aanvoer mest'!G10),IF(C11="",'aanvoer mest'!G$8,'aanvoer mest'!G12))) ->  | G10: =IF(C10="","",IF(tabellen!AD$1=FALSE,IF(C9="","",'aanvoer mest'!H10),IF(C11="",'aanvoer mest'!H$8,'aanvoer mest'!H12))) ->  | H10: =IF('aanvoer mest'!C11="","",IF(tabellen!AD$1=FALSE,IF('aanvoer mest'!C10="","",IF('aanvoer mest'!C10="",IF('aanvoer mest'!G10="",0,VLOOKUP('aanvoer mest'!G10,tabellen!I4:N25,5)*'aanvoer mest'!H10*'aanvoer mest'!I10)+VLOOKUP('aanvoer mest'!C10,tabellen!I4:N25,5)*'aanvoer mest'!E10*'aanvoer mest'!F10,IF('aanvoer mest'!G10="",0,VLOOKUP('aanvoer mest'!G10,tabellen!I$3:N$24,5)*'aanvoer mest'!H10*'aanvoer mest'!I10))),IF('aanvoer mest'!C12="",IF('aanvoer mest'!G$8="",0,VLOOKUP('aanvoer mest'!G$8,tabellen!I$3:N$24,5)*'aanvoer mest'!H$8*'aanvoer mest'!I$8),IF('aanvoer mest'!G12="",0,VLOOKUP('aanvoer mest'!G12,tabellen!I$3:N$24,5)*'aanvoer mest'!H12*'aanvoer mest'!I12)))) ->  | I10: =IF(C10="","",IF(tabellen!AD$1=FALSE,IF(C9="","",'aanvoer compost'!G10),IF(C11="",'aanvoer compost'!G$8,'aanvoer compost'!G12))) ->  | J10: =IF(C10="","",IF(tabellen!AD$1=FALSE,IF(C9="","",'aanvoer compost'!H10),IF(C11="",'aanvoer compost'!H$8,'aanvoer compost'!H12))) ->  | K10: =IF('aanvoer compost'!C11="","",IF(tabellen!AD$1=FALSE,IF('aanvoer compost'!C10="","",IF('aanvoer compost'!C10="",IF('aanvoer compost'!G10="",0,VLOOKUP('aanvoer compost'!G10,tabellen!I4:N25,5)*'aanvoer compost'!H10*'aanvoer compost'!I10)+VLOOKUP('aanvoer compost'!C10,tabellen!I4:N25,5)*'aanvoer compost'!E10*'aanvoer compost'!F10,IF('aanvoer compost'!G10="",0,VLOOKUP('aanvoer compost'!G10,tabellen!Q$3:V$12,5)*'aanvoer compost'!H10*'aanvoer compost'!I10))),IF('aanvoer compost'!C12="",IF('aanvoer compost'!G$8="",0,VLOOKUP('aanvoer compost'!G$8,tabellen!Q$3:V$12,5)*'aanvoer compost'!H$8*'aanvoer compost'!I$8),IF('aanvoer compost'!G12="",0,VLOOKUP('aanvoer compost'!G12,tabellen!Q$3:V$12,5)*'aanvoer compost'!H12*'aanvoer compost'!I12)))) ->  | L10: =IF(C10="","",IF(tabellen!AD$1=FALSE,IF(C9="","",'aanvoer groenbemesters'!D9),IF(C11="",'aanvoer groenbemesters'!D$7,'aanvoer groenbemesters'!D11))) ->  | M10: =IF('aanvoer gewas'!C13="","",'aanvoer groenbemesters'!F10) ->  | N10: =IF('aanvoer mest'!D11="","",'aanvoer mest'!D11) ->  | O10: =IF('aanvoer mest'!E11="","",'aanvoer mest'!E11) ->  | P10: =IF(N10="",0,VLOOKUP(N10,tabellen!I$3:N$24,6)*'aanvoer mest'!E11*'aanvoer mest'!F11) -> 0 | Q10: =IF('aanvoer compost'!$D11="","",'aanvoer compost'!D11) ->  | R10: =IF('aanvoer compost'!$D11="","",'aanvoer compost'!E11) ->  | S10: =IF(Q10="",0,VLOOKUP(Q10,tabellen!Q$3:V$12,6)*'aanvoer compost'!E11*'aanvoer compost'!F11) -> 0 | U10: =IF(C10="","",((((basis!$C$15/100*10)*0.3*(-0.37*LN(basis!$C$15)+1.8398)*10^6)/20-((basis!$C$15/100*10)*0.3*(-0.37*LN(basis!$C$15)+1.8398)*10^6-(basis!$C$15/100*10)*0.3*(-0.37*LN(basis!$C$15)+1.8398)*10^6*(0.0487*basis!$C$15^-0.453)*EXP((0.0412*LN(basis!$C$15)-0.1726)*0)*0.57)/20)*0.75)+T10) -> 
B11: ='aanvoer gewas'!B14 -> 2008 | C11: =IF('aanvoer gewas'!C14="","",'aanvoer gewas'!C14) ->  | D11: =IF(C11="","",IF(tabellen!AD$1=FALSE,IF(C10="","",'aanvoer gewas'!C13),IF(C12="",'aanvoer gewas'!C$10,'aanvoer gewas'!C15))) ->  | E11: =IF(D11="","",'aanvoer gewas'!E14) ->  | F11: =IF(C11="","",IF(tabellen!AD$1=FALSE,IF(C10="","",'aanvoer mest'!G11),IF(C12="",'aanvoer mest'!G$8,'aanvoer mest'!G13))) ->  | G11: =IF(C11="","",IF(tabellen!AD$1=FALSE,IF(C10="","",'aanvoer mest'!H11),IF(C12="",'aanvoer mest'!H$8,'aanvoer mest'!H13))) ->  | H11: =IF('aanvoer mest'!C12="","",IF(tabellen!AD$1=FALSE,IF('aanvoer mest'!C11="","",IF('aanvoer mest'!C11="",IF('aanvoer mest'!G11="",0,VLOOKUP('aanvoer mest'!G11,tabellen!I5:N26,5)*'aanvoer mest'!H11*'aanvoer mest'!I11)+VLOOKUP('aanvoer mest'!C11,tabellen!I5:N26,5)*'aanvoer mest'!E11*'aanvoer mest'!F11,IF('aanvoer mest'!G11="",0,VLOOKUP('aanvoer mest'!G11,tabellen!I$3:N$24,5)*'aanvoer mest'!H11*'aanvoer mest'!I11))),IF('aanvoer mest'!C13="",IF('aanvoer mest'!G$8="",0,VLOOKUP('aanvoer mest'!G$8,tabellen!I$3:N$24,5)*'aanvoer mest'!H$8*'aanvoer mest'!I$8),IF('aanvoer mest'!G13="",0,VLOOKUP('aanvoer mest'!G13,tabellen!I$3:N$24,5)*'aanvoer mest'!H13*'aanvoer mest'!I13)))) ->  | I11: =IF(C11="","",IF(tabellen!AD$1=FALSE,IF(C10="","",'aanvoer compost'!G11),IF(C12="",'aanvoer compost'!G$8,'aanvoer compost'!G13))) ->  | J11: =IF(C11="","",IF(tabellen!AD$1=FALSE,IF(C10="","",'aanvoer compost'!H11),IF(C12="",'aanvoer compost'!H$8,'aanvoer compost'!H13))) ->  | K11: =IF('aanvoer compost'!C12="","",IF(tabellen!AD$1=FALSE,IF('aanvoer compost'!C11="","",IF('aanvoer compost'!C11="",IF('aanvoer compost'!G11="",0,VLOOKUP('aanvoer compost'!G11,tabellen!I5:N26,5)*'aanvoer compost'!H11*'aanvoer compost'!I11)+VLOOKUP('aanvoer compost'!C11,tabellen!I5:N26,5)*'aanvoer compost'!E11*'aanvoer compost'!F11,IF('aanvoer compost'!G11="",0,VLOOKUP('aanvoer compost'!G11,tabellen!Q$3:V$12,5)*'aanvoer compost'!H11*'aanvoer compost'!I11))),IF('aanvoer compost'!C13="",IF('aanvoer compost'!G$8="",0,VLOOKUP('aanvoer compost'!G$8,tabellen!Q$3:V$12,5)*'aanvoer compost'!H$8*'aanvoer compost'!I$8),IF('aanvoer compost'!G13="",0,VLOOKUP('aanvoer compost'!G13,tabellen!Q$3:V$12,5)*'aanvoer compost'!H13*'aanvoer compost'!I13)))) ->  | L11: =IF(C11="","",IF(tabellen!AD$1=FALSE,IF(C10="","",'aanvoer groenbemesters'!D10),IF(C12="",'aanvoer groenbemesters'!D$7,'aanvoer groenbemesters'!D12))) ->  | M11: =IF('aanvoer gewas'!C14="","",'aanvoer groenbemesters'!F11) ->  | N11: =IF('aanvoer mest'!D12="","",'aanvoer mest'!D12) ->  | O11: =IF('aanvoer mest'!E12="","",'aanvoer mest'!E12) ->  | P11: =IF(N11="",0,VLOOKUP(N11,tabellen!I$3:N$24,6)*'aanvoer mest'!E12*'aanvoer mest'!F12) -> 0 | Q11: =IF('aanvoer compost'!$D12="","",'aanvoer compost'!D12) ->  | R11: =IF('aanvoer compost'!$D12="","",'aanvoer compost'!E12) ->  | S11: =IF(Q11="",0,VLOOKUP(Q11,tabellen!Q$3:V$12,6)*'aanvoer compost'!E12*'aanvoer compost'!F12) -> 0 | U11: =IF(C11="","",((((basis!$C$15/100*10)*0.3*(-0.37*LN(basis!$C$15)+1.8398)*10^6)/20-((basis!$C$15/100*10)*0.3*(-0.37*LN(basis!$C$15)+1.8398)*10^6-(basis!$C$15/100*10)*0.3*(-0.37*LN(basis!$C$15)+1.8398)*10^6*(0.0487*basis!$C$15^-0.453)*EXP((0.0412*LN(basis!$C$15)-0.1726)*0)*0.57)/20)*0.75)+T11) -> 
B12: ='aanvoer gewas'!B15 -> 2007 | C12: =IF('aanvoer gewas'!C15="","",'aanvoer gewas'!C15) ->  | D12: =IF(C12="","",IF(tabellen!AD$1=FALSE,IF(C11="","",'aanvoer gewas'!C14),IF(C13="",'aanvoer gewas'!C$10,'aanvoer gewas'!C16))) ->  | E12: =IF(D12="","",'aanvoer gewas'!E15) ->  | F12: =IF(C12="","",IF(tabellen!AD$1=FALSE,IF(C11="","",'aanvoer mest'!G12),IF(C13="",'aanvoer mest'!G$8,'aanvoer mest'!G14))) ->  | G12: =IF(C12="","",IF(tabellen!AD$1=FALSE,IF(C11="","",'aanvoer mest'!H12),IF(C13="",'aanvoer mest'!H$8,'aanvoer mest'!H14))) ->  | H12: =IF('aanvoer mest'!C13="","",IF(tabellen!AD$1=FALSE,IF('aanvoer mest'!C12="","",IF('aanvoer mest'!C12="",IF('aanvoer mest'!G12="",0,VLOOKUP('aanvoer mest'!G12,tabellen!I6:N27,5)*'aanvoer mest'!H12*'aanvoer mest'!I12)+VLOOKUP('aanvoer mest'!C12,tabellen!I6:N27,5)*'aanvoer mest'!E12*'aanvoer mest'!F12,IF('aanvoer mest'!G12="",0,VLOOKUP('aanvoer mest'!G12,tabellen!I$3:N$24,5)*'aanvoer mest'!H12*'aanvoer mest'!I12))),IF('aanvoer mest'!C14="",IF('aanvoer mest'!G$8="",0,VLOOKUP('aanvoer mest'!G$8,tabellen!I$3:N$24,5)*'aanvoer mest'!H$8*'aanvoer mest'!I$8),IF('aanvoer mest'!G14="",0,VLOOKUP('aanvoer mest'!G14,tabellen!I$3:N$24,5)*'aanvoer mest'!H14*'aanvoer mest'!I14)))) ->  | I12: =IF(C12="","",IF(tabellen!AD$1=FALSE,IF(C11="","",'aanvoer compost'!G12),IF(C13="",'aanvoer compost'!G$8,'aanvoer compost'!G14))) ->  | J12: =IF(C12="","",IF(tabellen!AD$1=FALSE,IF(C11="","",'aanvoer compost'!H12),IF(C13="",'aanvoer compost'!H$8,'aanvoer compost'!H14))) ->  | K12: =IF('aanvoer compost'!C13="","",IF(tabellen!AD$1=FALSE,IF('aanvoer compost'!C12="","",IF('aanvoer compost'!C12="",IF('aanvoer compost'!G12="",0,VLOOKUP('aanvoer compost'!G12,tabellen!I6:N27,5)*'aanvoer compost'!H12*'aanvoer compost'!I12)+VLOOKUP('aanvoer compost'!C12,tabellen!I6:N27,5)*'aanvoer compost'!E12*'aanvoer compost'!F12,IF('aanvoer compost'!G12="",0,VLOOKUP('aanvoer compost'!G12,tabellen!Q$3:V$12,5)*'aanvoer compost'!H12*'aanvoer compost'!I12))),IF('aanvoer compost'!C14="",IF('aanvoer compost'!G$8="",0,VLOOKUP('aanvoer compost'!G$8,tabellen!Q$3:V$12,5)*'aanvoer compost'!H$8*'aanvoer compost'!I$8),IF('aanvoer compost'!G14="",0,VLOOKUP('aanvoer compost'!G14,tabellen!Q$3:V$12,5)*'aanvoer compost'!H14*'aanvoer compost'!I14)))) ->  | L12: =IF(C12="","",IF(tabellen!AD$1=FALSE,IF(C11="","",'aanvoer groenbemesters'!D11),IF(C13="",'aanvoer groenbemesters'!D$7,'aanvoer groenbemesters'!D13))) ->  | M12: =IF('aanvoer gewas'!C15="","",'aanvoer groenbemesters'!F12) ->  | N12: =IF('aanvoer mest'!D13="","",'aanvoer mest'!D13) ->  | O12: =IF('aanvoer mest'!E13="","",'aanvoer mest'!E13) ->  | P12: =IF(N12="",0,VLOOKUP(N12,tabellen!I$3:N$24,6)*'aanvoer mest'!E13*'aanvoer mest'!F13) -> 0 | Q12: =IF('aanvoer compost'!$D13="","",'aanvoer compost'!D13) ->  | R12: =IF('aanvoer compost'!$D13="","",'aanvoer compost'!E13) ->  | S12: =IF(Q12="",0,VLOOKUP(Q12,tabellen!Q$3:V$12,6)*'aanvoer compost'!E13*'aanvoer compost'!F13) -> 0 | U12: =IF(C12="","",((((basis!$C$15/100*10)*0.3*(-0.37*LN(basis!$C$15)+1.8398)*10^6)/20-((basis!$C$15/100*10)*0.3*(-0.37*LN(basis!$C$15)+1.8398)*10^6-(basis!$C$15/100*10)*0.3*(-0.37*LN(basis!$C$15)+1.8398)*10^6*(0.0487*basis!$C$15^-0.453)*EXP((0.0412*LN(basis!$C$15)-0.1726)*0)*0.57)/20)*0.75)+T12) -> 
B13: ='aanvoer gewas'!B16 -> 2006 | C13: =IF('aanvoer gewas'!C16="","",'aanvoer gewas'!C16) ->  | D13: =IF(C13="","",IF(tabellen!AD$1=FALSE,IF(C12="","",'aanvoer gewas'!C15),IF(C14="",'aanvoer gewas'!C$10,'aanvoer gewas'!C17))) ->  | E13: =IF(D13="","",'aanvoer gewas'!E16) ->  | F13: =IF(C13="","",IF(tabellen!AD$1=FALSE,IF(C12="","",'aanvoer mest'!G13),IF(C14="",'aanvoer mest'!G$8,'aanvoer mest'!G15))) ->  | G13: =IF(C13="","",IF(tabellen!AD$1=FALSE,IF(C12="","",'aanvoer mest'!H13),IF(C14="",'aanvoer mest'!H$8,'aanvoer mest'!H15))) ->  | H13: =IF('aanvoer mest'!C14="","",IF(tabellen!AD$1=FALSE,IF('aanvoer mest'!C13="","",IF('aanvoer mest'!C13="",IF('aanvoer mest'!G13="",0,VLOOKUP('aanvoer mest'!G13,tabellen!I7:N28,5)*'aanvoer mest'!H13*'aanvoer mest'!I13)+VLOOKUP('aanvoer mest'!C13,tabellen!I7:N28,5)*'aanvoer mest'!E13*'aanvoer mest'!F13,IF('aanvoer mest'!G13="",0,VLOOKUP('aanvoer mest'!G13,tabellen!I$3:N$24,5)*'aanvoer mest'!H13*'aanvoer mest'!I13))),IF('aanvoer mest'!C15="",IF('aanvoer mest'!G$8="",0,VLOOKUP('aanvoer mest'!G$8,tabellen!I$3:N$24,5)*'aanvoer mest'!H$8*'aanvoer mest'!I$8),IF('aanvoer mest'!G15="",0,VLOOKUP('aanvoer mest'!G15,tabellen!I$3:N$24,5)*'aanvoer mest'!H15*'aanvoer mest'!I15)))) ->  | I13: =IF(C13="","",IF(tabellen!AD$1=FALSE,IF(C12="","",'aanvoer compost'!G13),IF(C14="",'aanvoer compost'!G$8,'aanvoer compost'!G15))) ->  | J13: =IF(C13="","",IF(tabellen!AD$1=FALSE,IF(C12="","",'aanvoer compost'!H13),IF(C14="",'aanvoer compost'!H$8,'aanvoer compost'!H15))) ->  | K13: =IF('aanvoer compost'!C14="","",IF(tabellen!AD$1=FALSE,IF('aanvoer compost'!C13="","",IF('aanvoer compost'!C13="",IF('aanvoer compost'!G13="",0,VLOOKUP('aanvoer compost'!G13,tabellen!I7:N28,5)*'aanvoer compost'!H13*'aanvoer compost'!I13)+VLOOKUP('aanvoer compost'!C13,tabellen!I7:N28,5)*'aanvoer compost'!E13*'aanvoer compost'!F13,IF('aanvoer compost'!G13="",0,VLOOKUP('aanvoer compost'!G13,tabellen!Q$3:V$12,5)*'aanvoer compost'!H13*'aanvoer compost'!I13))),IF('aanvoer compost'!C15="",IF('aanvoer compost'!G$8="",0,VLOOKUP('aanvoer compost'!G$8,tabellen!Q$3:V$12,5)*'aanvoer compost'!H$8*'aanvoer compost'!I$8),IF('aanvoer compost'!G15="",0,VLOOKUP('aanvoer compost'!G15,tabellen!Q$3:V$12,5)*'aanvoer compost'!H15*'aanvoer compost'!I15)))) ->  | L13: =IF(C13="","",IF(tabellen!AD$1=FALSE,IF(C12="","",'aanvoer groenbemesters'!D12),IF(C14="",'aanvoer groenbemesters'!D$7,'aanvoer groenbemesters'!D14))) ->  | M13: =IF('aanvoer gewas'!C16="","",'aanvoer groenbemesters'!F13) ->  | N13: =IF('aanvoer mest'!D14="","",'aanvoer mest'!D14) ->  | O13: =IF('aanvoer mest'!E14="","",'aanvoer mest'!E14) ->  | P13: =IF(N13="",0,VLOOKUP(N13,tabellen!I$3:N$24,6)*'aanvoer mest'!E14*'aanvoer mest'!F14) -> 0 | Q13: =IF('aanvoer compost'!$D14="","",'aanvoer compost'!D14) ->  | R13: =IF('aanvoer compost'!$D14="","",'aanvoer compost'!E14) ->  | S13: =IF(Q13="",0,VLOOKUP(Q13,tabellen!Q$3:V$12,6)*'aanvoer compost'!E14*'aanvoer compost'!F14) -> 0 | U13: =IF(C13="","",((((basis!$C$15/100*10)*0.3*(-0.37*LN(basis!$C$15)+1.8398)*10^6)/20-((basis!$C$15/100*10)*0.3*(-0.37*LN(basis!$C$15)+1.8398)*10^6-(basis!$C$15/100*10)*0.3*(-0.37*LN(basis!$C$15)+1.8398)*10^6*(0.0487*basis!$C$15^-0.453)*EXP((0.0412*LN(basis!$C$15)-0.1726)*0)*0.57)/20)*0.75)+T13) -> 
B14: ='aanvoer gewas'!B17 -> 2005 | C14: =IF('aanvoer gewas'!C17="","",'aanvoer gewas'!C17) ->  | D14: =IF(C14="","",IF(tabellen!AD$1=FALSE,IF(C13="","",'aanvoer gewas'!C16),IF(C15="",'aanvoer gewas'!C$10,'aanvoer gewas'!C18))) ->  | E14: =IF(D14="","",'aanvoer gewas'!E17) ->  | F14: =IF(C14="","",IF(tabellen!AD$1=FALSE,IF(C13="","",'aanvoer mest'!G14),IF(C15="",'aanvoer mest'!G$8,'aanvoer mest'!G16))) ->  | G14: =IF(C14="","",IF(tabellen!AD$1=FALSE,IF(C13="","",'aanvoer mest'!H14),IF(C15="",'aanvoer mest'!H$8,'aanvoer mest'!H16))) ->  | H14: =IF('aanvoer mest'!C15="","",IF(tabellen!AD$1=FALSE,IF('aanvoer mest'!C14="","",IF('aanvoer mest'!C14="",IF('aanvoer mest'!G14="",0,VLOOKUP('aanvoer mest'!G14,tabellen!I8:N29,5)*'aanvoer mest'!H14*'aanvoer mest'!I14)+VLOOKUP('aanvoer mest'!C14,tabellen!I8:N29,5)*'aanvoer mest'!E14*'aanvoer mest'!F14,IF('aanvoer mest'!G14="",0,VLOOKUP('aanvoer mest'!G14,tabellen!I$3:N$24,5)*'aanvoer mest'!H14*'aanvoer mest'!I14))),IF('aanvoer mest'!C16="",IF('aanvoer mest'!G$8="",0,VLOOKUP('aanvoer mest'!G$8,tabellen!I$3:N$24,5)*'aanvoer mest'!H$8*'aanvoer mest'!I$8),IF('aanvoer mest'!G16="",0,VLOOKUP('aanvoer mest'!G16,tabellen!I$3:N$24,5)*'aanvoer mest'!H16*'aanvoer mest'!I16)))) ->  | I14: =IF(C14="","",IF(tabellen!AD$1=FALSE,IF(C13="","",'aanvoer compost'!G14),IF(C15="",'aanvoer compost'!G$8,'aanvoer compost'!G16))) ->  | J14: =IF(C14="","",IF(tabellen!AD$1=FALSE,IF(C13="","",'aanvoer compost'!H14),IF(C15="",'aanvoer compost'!H$8,'aanvoer compost'!H16))) ->  | K14: =IF('aanvoer compost'!C15="","",IF(tabellen!AD$1=FALSE,IF('aanvoer compost'!C14="","",IF('aanvoer compost'!C14="",IF('aanvoer compost'!G14="",0,VLOOKUP('aanvoer compost'!G14,tabellen!I8:N29,5)*'aanvoer compost'!H14*'aanvoer compost'!I14)+VLOOKUP('aanvoer compost'!C14,tabellen!I8:N29,5)*'aanvoer compost'!E14*'aanvoer compost'!F14,IF('aanvoer compost'!G14="",0,VLOOKUP('aanvoer compost'!G14,tabellen!Q$3:V$12,5)*'aanvoer compost'!H14*'aanvoer compost'!I14))),IF('aanvoer compost'!C16="",IF('aanvoer compost'!G$8="",0,VLOOKUP('aanvoer compost'!G$8,tabellen!Q$3:V$12,5)*'aanvoer compost'!H$8*'aanvoer compost'!I$8),IF('aanvoer compost'!G16="",0,VLOOKUP('aanvoer compost'!G16,tabellen!Q$3:V$12,5)*'aanvoer compost'!H16*'aanvoer compost'!I16)))) ->  | L14: =IF(C14="","",IF(tabellen!AD$1=FALSE,IF(C13="","",'aanvoer groenbemesters'!D13),IF(C15="",'aanvoer groenbemesters'!D$7,'aanvoer groenbemesters'!D15))) ->  | M14: =IF('aanvoer gewas'!C17="","",'aanvoer groenbemesters'!F14) ->  | N14: =IF('aanvoer mest'!D15="","",'aanvoer mest'!D15) ->  | O14: =IF('aanvoer mest'!E15="","",'aanvoer mest'!E15) ->  | P14: =IF(N14="",0,VLOOKUP(N14,tabellen!I$3:N$24,6)*'aanvoer mest'!E15*'aanvoer mest'!F15) -> 0 | Q14: =IF('aanvoer compost'!$D15="","",'aanvoer compost'!D15) ->  | R14: =IF('aanvoer compost'!$D15="","",'aanvoer compost'!E15) ->  | S14: =IF(Q14="",0,VLOOKUP(Q14,tabellen!Q$3:V$12,6)*'aanvoer compost'!E15*'aanvoer compost'!F15) -> 0 | U14: =IF(C14="","",((((basis!$C$15/100*10)*0.3*(-0.37*LN(basis!$C$15)+1.8398)*10^6)/20-((basis!$C$15/100*10)*0.3*(-0.37*LN(basis!$C$15)+1.8398)*10^6-(basis!$C$15/100*10)*0.3*(-0.37*LN(basis!$C$15)+1.8398)*10^6*(0.0487*basis!$C$15^-0.453)*EXP((0.0412*LN(basis!$C$15)-0.1726)*0)*0.57)/20)*0.75)+T14) -> 
B15: ='aanvoer gewas'!B18 -> 2004 | C15: =IF('aanvoer gewas'!C18="","",'aanvoer gewas'!C18) ->  | D15: =IF(C15="","",IF(tabellen!AD$1=FALSE,IF(C14="","",'aanvoer gewas'!C17),IF(C16="",'aanvoer gewas'!C$10,'aanvoer gewas'!C19))) ->  | E15: =IF(D15="","",'aanvoer gewas'!E18) ->  | F15: =IF(C15="","",IF(tabellen!AD$1=FALSE,IF(C14="","",'aanvoer mest'!G15),IF(C16="",'aanvoer mest'!G$8,'aanvoer mest'!G17))) ->  | G15: =IF(C15="","",IF(tabellen!AD$1=FALSE,IF(C14="","",'aanvoer mest'!H15),IF(C16="",'aanvoer mest'!H$8,'aanvoer mest'!H17))) ->  | H15: =IF('aanvoer mest'!C16="","",IF(tabellen!AD$1=FALSE,IF('aanvoer mest'!C15="","",IF('aanvoer mest'!C15="",IF('aanvoer mest'!G15="",0,VLOOKUP('aanvoer mest'!G15,tabellen!I9:N30,5)*'aanvoer mest'!H15*'aanvoer mest'!I15)+VLOOKUP('aanvoer mest'!C15,tabellen!I9:N30,5)*'aanvoer mest'!E15*'aanvoer mest'!F15,IF('aanvoer mest'!G15="",0,VLOOKUP('aanvoer mest'!G15,tabellen!I$3:N$24,5)*'aanvoer mest'!H15*'aanvoer mest'!I15))),IF('aanvoer mest'!C17="",IF('aanvoer mest'!G$8="",0,VLOOKUP('aanvoer mest'!G$8,tabellen!I$3:N$24,5)*'aanvoer mest'!H$8*'aanvoer mest'!I$8),IF('aanvoer mest'!G17="",0,VLOOKUP('aanvoer mest'!G17,tabellen!I$3:N$24,5)*'aanvoer mest'!H17*'aanvoer mest'!I17)))) ->  | I15: =IF(C15="","",IF(tabellen!AD$1=FALSE,IF(C14="","",'aanvoer compost'!G15),IF(C16="",'aanvoer compost'!G$8,'aanvoer compost'!G17))) ->  | J15: =IF(C15="","",IF(tabellen!AD$1=FALSE,IF(C14="","",'aanvoer compost'!H15),IF(C16="",'aanvoer compost'!H$8,'aanvoer compost'!H17))) ->  | K15: =IF('aanvoer compost'!C16="","",IF(tabellen!AD$1=FALSE,IF('aanvoer compost'!C15="","",IF('aanvoer compost'!C15="",IF('aanvoer compost'!G15="",0,VLOOKUP('aanvoer compost'!G15,tabellen!I9:N30,5)*'aanvoer compost'!H15*'aanvoer compost'!I15)+VLOOKUP('aanvoer compost'!C15,tabellen!I9:N30,5)*'aanvoer compost'!E15*'aanvoer compost'!F15,IF('aanvoer compost'!G15="",0,VLOOKUP('aanvoer compost'!G15,tabellen!Q$3:V$12,5)*'aanvoer compost'!H15*'aanvoer compost'!I15))),IF('aanvoer compost'!C17="",IF('aanvoer compost'!G$8="",0,VLOOKUP('aanvoer compost'!G$8,tabellen!Q$3:V$12,5)*'aanvoer compost'!H$8*'aanvoer compost'!I$8),IF('aanvoer compost'!G17="",0,VLOOKUP('aanvoer compost'!G17,tabellen!Q$3:V$12,5)*'aanvoer compost'!H17*'aanvoer compost'!I17)))) ->  | L15: =IF(C15="","",IF(tabellen!AD$1=FALSE,IF(C14="","",'aanvoer groenbemesters'!D14),IF(C16="",'aanvoer groenbemesters'!D$7,'aanvoer groenbemesters'!D16))) ->  | M15: =IF('aanvoer gewas'!C18="","",'aanvoer groenbemesters'!F15) ->  | N15: =IF('aanvoer mest'!D16="","",'aanvoer mest'!D16) ->  | O15: =IF('aanvoer mest'!E16="","",'aanvoer mest'!E16) ->  | P15: =IF(N15="",0,VLOOKUP(N15,tabellen!I$3:N$24,6)*'aanvoer mest'!E16*'aanvoer mest'!F16) -> 0 | Q15: =IF('aanvoer compost'!$D16="","",'aanvoer compost'!D16) ->  | R15: =IF('aanvoer compost'!$D16="","",'aanvoer compost'!E16) ->  | S15: =IF(Q15="",0,VLOOKUP(Q15,tabellen!Q$3:V$12,6)*'aanvoer compost'!E16*'aanvoer compost'!F16) -> 0 | T15: =IF(C15="","",E15+H15+K15+M15+P15+S15) ->  | U15: =IF(C15="","",((((basis!$C$15/100*10)*0.3*(-0.37*LN(basis!$C$15)+1.8398)*10^6)/20-((basis!$C$15/100*10)*0.3*(-0.37*LN(basis!$C$15)+1.8398)*10^6-(basis!$C$15/100*10)*0.3*(-0.37*LN(basis!$C$15)+1.8398)*10^6*(0.0487*basis!$C$15^-0.453)*EXP((0.0412*LN(basis!$C$15)-0.1726)*0)*0.57)/20)*0.75)+T15) -> 
B16: ='aanvoer gewas'!B19 -> 2003 | C16: =IF('aanvoer gewas'!C19="","",'aanvoer gewas'!C19) ->  | D16: =IF(C16="","",IF(tabellen!AD$1=FALSE,IF(C15="","",'aanvoer gewas'!C18),IF(C17="",'aanvoer gewas'!C$10,'aanvoer gewas'!C20))) ->  | E16: =IF(D16="","",'aanvoer gewas'!E19) ->  | F16: =IF(C16="","",IF(tabellen!AD$1=FALSE,IF(C15="","",'aanvoer mest'!G16),IF(C17="",'aanvoer mest'!G$8,'aanvoer mest'!G18))) ->  | G16: =IF(C16="","",IF(tabellen!AD$1=FALSE,IF(C15="","",'aanvoer mest'!H16),IF(C17="",'aanvoer mest'!H$8,'aanvoer mest'!H18))) ->  | H16: =IF('aanvoer mest'!C17="","",IF(tabellen!AD$1=FALSE,IF('aanvoer mest'!C16="","",IF('aanvoer mest'!C16="",IF('aanvoer mest'!G16="",0,VLOOKUP('aanvoer mest'!G16,tabellen!I10:N31,5)*'aanvoer mest'!H16*'aanvoer mest'!I16)+VLOOKUP('aanvoer mest'!C16,tabellen!I10:N31,5)*'aanvoer mest'!E16*'aanvoer mest'!F16,IF('aanvoer mest'!G16="",0,VLOOKUP('aanvoer mest'!G16,tabellen!I$3:N$24,5)*'aanvoer mest'!H16*'aanvoer mest'!I16))),IF('aanvoer mest'!C18="",IF('aanvoer mest'!G$8="",0,VLOOKUP('aanvoer mest'!G$8,tabellen!I$3:N$24,5)*'aanvoer mest'!H$8*'aanvoer mest'!I$8),IF('aanvoer mest'!G18="",0,VLOOKUP('aanvoer mest'!G18,tabellen!I$3:N$24,5)*'aanvoer mest'!H18*'aanvoer mest'!I18)))) ->  | I16: =IF(C16="","",IF(tabellen!AD$1=FALSE,IF(C15="","",'aanvoer compost'!G16),IF(C17="",'aanvoer compost'!G$8,'aanvoer compost'!G18))) ->  | J16: =IF(C16="","",IF(tabellen!AD$1=FALSE,IF(C15="","",'aanvoer compost'!H16),IF(C17="",'aanvoer compost'!H$8,'aanvoer compost'!H18))) ->  | K16: =IF('aanvoer compost'!C17="","",IF(tabellen!AD$1=FALSE,IF('aanvoer compost'!C16="","",IF('aanvoer compost'!C16="",IF('aanvoer compost'!G16="",0,VLOOKUP('aanvoer compost'!G16,tabellen!I10:N31,5)*'aanvoer compost'!H16*'aanvoer compost'!I16)+VLOOKUP('aanvoer compost'!C16,tabellen!I10:N31,5)*'aanvoer compost'!E16*'aanvoer compost'!F16,IF('aanvoer compost'!G16="",0,VLOOKUP('aanvoer compost'!G16,tabellen!Q$3:V$12,5)*'aanvoer compost'!H16*'aanvoer compost'!I16))),IF('aanvoer compost'!C18="",IF('aanvoer compost'!G$8="",0,VLOOKUP('aanvoer compost'!G$8,tabellen!Q$3:V$12,5)*'aanvoer compost'!H$8*'aanvoer compost'!I$8),IF('aanvoer compost'!G18="",0,VLOOKUP('aanvoer compost'!G18,tabellen!Q$3:V$12,5)*'aanvoer compost'!H18*'aanvoer compost'!I18)))) ->  | L16: =IF(C16="","",IF(tabellen!AD$1=FALSE,IF(C15="","",'aanvoer groenbemesters'!D15),IF(C17="",'aanvoer groenbemesters'!D$7,'aanvoer groenbemesters'!D17))) ->  | M16: =IF('aanvoer gewas'!C19="","",'aanvoer groenbemesters'!F16) ->  | N16: =IF('aanvoer mest'!D17="","",'aanvoer mest'!D17) ->  | O16: =IF('aanvoer mest'!E17="","",'aanvoer mest'!E17) ->  | P16: =IF(N16="",0,VLOOKUP(N16,tabellen!I$3:N$24,6)*'aanvoer mest'!E17*'aanvoer mest'!F17) -> 0 | Q16: =IF('aanvoer compost'!$D17="","",'aanvoer compost'!D17) ->  | R16: =IF('aanvoer compost'!$D17="","",'aanvoer compost'!E17) ->  | S16: =IF(Q16="",0,VLOOKUP(Q16,tabellen!Q$3:V$12,6)*'aanvoer compost'!E17*'aanvoer compost'!F17) -> 0 | T16: =IF(C16="","",E16+H16+K16+M16+P16+S16) ->  | U16: =IF(C16="","",((((basis!$C$15/100*10)*0.3*(-0.37*LN(basis!$C$15)+1.8398)*10^6)/20-((basis!$C$15/100*10)*0.3*(-0.37*LN(basis!$C$15)+1.8398)*10^6-(basis!$C$15/100*10)*0.3*(-0.37*LN(basis!$C$15)+1.8398)*10^6*(0.0487*basis!$C$15^-0.453)*EXP((0.0412*LN(basis!$C$15)-0.1726)*0)*0.57)/20)*0.75)+T16) -> 
D20: <<<< terug naar begin | G20: <<terug
B21: Disclaimer: Dit advies is met de grootst mogelijke zorgvuldigheid samengesteld. Desondanks kan dit advies informatie bevatten die incorrect en/of incompleet is. Aan de inhoud ervan kunnen geen rechten worden ontleend. HLB aanvaardt geen aansprakelijkheid voor directe of indirecte schade die het gevolg is van het gebruik van informatie van dit advies. De inhoud van dit advies mag niet worden gebruikt voor publicatie zonder toestemming van HLB.

Sheet tabellen (hidden)
B1: afbraak organische stof | E1: levering effectieve organische stof door gewasresten | I1: levering effectieve organische stof door organische mest | L1: Stikstof | Q1: levering effectieve organische stof door compost | T1: Stikstof | X1: levering effectieve organische stof door groenbemesters | Z1: Stikstof | AB1: jaar aflopend sorteren | AD1: TRUE
B2: os% | C2: jaarlijkse afbraak | E2: gewas | F2: levering effectieve organische stof door gewasresten (kg per hectare) | G2: N-Levering | I2: mestsoort | J2: afk | K2: effectieve org. stof per ton produkt | L2: Kg N per ton/m³ | M2: w.c. N nj | N2: w.c. N vj | Q2: compostsoort | R2: afk | S2: effectieve org. stof per ton produkt | T2: Kg N per ton/m³ | U2: w.c. N nj | V2: w.c. N vj | X2: groenbemesters (in de stoppel gezaaid) | Y2: levering effectieve organische stof door gewasresten (kg per hectare) | Z2: mineralisatie
B3: 2 | C3: =1479*LN(B3) - 329.93 -> 695 | I3: (geen mest) | K3: 0 | Q3: (geen compost) | S3: 0 | X3: (geen groenbemester) | Y3: 0
B4: 3 | C4: 1295 | E4: Aardbeien | F4: 300 | G4: 0 | I4: Droge hennenmest (vast) | J4: V-HEN | K4: 190 | L4: 24.1 | M4: 0.25 | N4: 0.58 | Q4: AVEBE-compost | R4: AVEBE | S4: 110 | T4: 3.3 | U4: 0.1 | V4: 0.1 | X4: Bladkool | Y4: 840 | Z4: 30
B5: 4 | C5: 1720 | E5: Achillea | F5: 0 | G5: 0 | I5: Eendenmest (vast) | J5: V-EEN | K5: 105 | L5: 8.3 | M5: 0.25 | N5: 0.55 | Q5: Champost | R5: CHAM | S5: 126 | T5: 5.2 | U5: 0.1 | V5: 0.25 | X5: Bladrammenas | Y5: 850 | Z5: 30
B6: 5 | C6: 2050 | E6: Aconitum (monnikskap) | F6: 0 | G6: 0 | I6: Geitenmest (vast) | J6: V-GEIT | K6: 90 | L6: 8.5 | M6: 0.25 | N6: 0.65 | Q6: GFT-compost | R6: GFT | S6: 183 | T6: 6.9 | U6: 0.1 | V6: 0.1 | X6: Gele mosterd | Y6: 850 | Z6: 30
B7: 6 | C7: 2320 | E7: Agapanthus (Afrikaanse lelie) | F7: 0 | G7: 0 | I7: Kalkoenen (vast) | J7: V-KAL | K7: 230 | L7: 24.7 | M7: 0.25 | N7: 0.62 | Q7: Groencompost | R7: GROEN | S7: 190 | T7: 8.5 | U7: 0.1 | V7: 0.1 | X7: Hopperupsklaver | Y7: 790 | Z7: 60
B8: 7 | C8: 2548 | E8: Alchemilla mollis | F8: 0 | G8: 0 | I8: Kippendrijfmest | J8: D-KIP | K8: 35 | L8: 10.2 | M8: 0.25 | N8: 0.84 | Q8: Humusaarde | R8: HUMAA | S8: 88 | T8: 4.0 | U8: 0.1 | V8: 0.1 | X8: Japanse haver (Avena Strigosa) | Y8: 850 | Z8: 30
B9: 8 | C9: 2746 | E9: Allium (sierui) | F9: 300 | G9: 0 | I9: Kippenstrooisel (vast) | J9: V-KIP | K9: 230 | L9: 19.1 | M9: 0.25 | N9: 0.73 | Q9: Humuskal | R9: HUMKA | S9: 150 | T9: 7.3 | U9: 0.1 | V9: 0.1 | X9: Klaver, rode (onder dekvrucht) | Y9: 1165 | Z9: 60
B10: 9 | C10: 2920 | E10: Amaranthus | F10: 0 | G10: 0 | I10: Konijnenmest (vast) | J10: V-KON | K10: 185 | L10: 13.6 | M10: 0.25 | N10: 0.65 | Q10: Laco-keurcompost | R10: LACO | S10: 193 | T10: 8.6 | U10: 0.1 | V10: 0.1 | X10: Klaver, witte (onder dekvrucht) | Y10: 850 | Z10: 60
B11: 10 | C11: 3076 | E11: Andijvie | F11: 450 | G11: 0 | I11: Nertsenmest (vast) | J11: V-NER | K11: 95 | L11: 17.7 | M11: 0.25 | N11: 0.8 | Q11: Natuurcompost | R11: NATUU | S11: 185 | T11: 6.8 | U11: 0.1 | V11: 0.1 | X11: Kunstweide (najaarszaai) | Y11: 450 | Z11: 30
B12: 12 | C12: 3345 | E12: Anjer (tros-) | F12: 250 | G12: 0 | I12: Paardenmest (vast) | J12: V-PAA | K12: 125 | L12: 5.0 | M12: 0.25 | N12: 0.6 | Q12: Recro-keurcompost | R12: RECRO | S12: 132 | T12: 8.9 | U12: 0.1 | V12: 0.1 | X12: Phacelia | Y12: 850 | Z12: 30
B13: 15 | C13: 3675 | E13: Anthirrhinum (leeuwebek) | F13: 0 | G13: 0 | I13: Rundveedrijfmest | J13: V-RUND | K13: 30 | L13: 4.2 | M13: 0.25 | N13: 0.66 | X13: Raaigras, engels (in stoppel) | Y13: 980 | Z13: 30
B14: 20 | C14: 4101 | E14: Asclepias | F14: 0 | G14: 0 | I14: Rundveegier | J14: G-RUND | K14: 5 | L14: 4.0 | M14: 0.25 | N14: 0.93 | Q14: bron: praktijkgids bemesting NMI, Conviro | X14: Raaigras, engels (onder dekvrucht) | Y14: 1155 | Z14: 30
B15: 30 | C15: 4700 | E15: Asperges (aanleg) | F15: 0 | G15: 0 | I15: Rundveemest (vast) | J15: V-RUND | K15: 85 | L15: 6.4 | M15: 0.25 | N15: 0.48 | X15: Raaigras, italiaans (in stoppel) | Y15: 1080 | Z15: 30
E16: Asperges (bestaand) | F16: 1000 | G16: 0 | I16: Schapenmest (vast) | J16: V-SCH | K16: 105 | L16: 8.6 | M16: 0.25 | N16: 0.65 | X16: Raaigras, italiaans (onder dekvrucht) | Y16: 1255 | Z16: 30
B17: bron: Kor Zwart, Alterra | E17: Aster | F17: 250 | G17: 0 | I17: Varkensmest (vast) | J17: V-VAR | K17: 65 | L17: 7.5 | M17: 0.25 | N17: 0.65 | X17: Stoppelknollen | Y17: 830 | Z17: 30
E18: Astilbe spirea | F18: 0 | G18: 0 | I18: Vleeskalverendrijfmest | J18: D-KAL | K18: 5 | L18: 3.0 | M18: 0.25 | N18: 0.82 | X18: Tagetes | Y18: 865 | Z18: 30
E19: Astrantia | F19: 0 | G19: 0 | I19: Vleeskuikenmest (vast) | J19: V-KUI | K19: 280 | L19: 30.5 | M19: 0.25 | N19: 0.62 | X19: Teunisbloem | Y19: 700 | Z19: 60
E20: Augurken | F20: 250 | G20: 0 | I20: Vleesvarkensdrijfmest | J20: D-VAR | K20: 18 | L20: 7.0 | M20: 0.25 | N20: 0.75 | X20: Wikken | Y20: 645 | Z20: 30
E21: Begonia (knol) | F21: 0 | G21: 0 | I21: Vleesvarkensgier | J21: G-VAR | K21: 2 | L21: 6.5 | M21: 0.25 | N21: 0.94 | X21: Winterrogge | Y21: 850 | Z21: 30
E22: Bieslook | F22: 300 | G22: 0 | I22: Vossenmest (vast) | J22: V-VOS | K22: 95 | L22: 17.7 | M22: 0.25 | N22: 0.8 | X22: Zomerkoolzaad | Y22: 770 | Z22: 30
E23: Bladspinazie | F23: 300 | G23: 0 | I23: Zeugendrijfmest | J23: D-ZEUG | K23: 10 | L23: 4.2 | M23: 0.25 | N23: 0.8
E24: Blauwmaanzaad | F24: 750 | G24: 0 | I24: Zeugengier | J24: G-ZEUG | K24: 3 | L24: 2.0 | M24: 0.25 | N24: 0.94 | X24: bron: praktijkgids bemesting NMI
E25: Bleekselderij | F25: 450 | G25: 0
E26: Bloemkool (exl. gewasresten) | F26: 1000 | G26: 0 | I26: bron: Nutrinorm.nl
E27: Bloemkool (incl. gewasresten) | F27: 1150 | G27: 30
E28: Boerenkool (excl. gewasresten) | F28: 750 | G28: 0
E29: Boerenkool (incl. gewasresten) | F29: 900 | G29: 30
E30: Bollen bijgoed | F30: 0 | G30: 0
E31: Bonen (overige) (excl. gewasresten) | F31: 170 | G31: 0
E32: Bonen (overige) (incl. gewaresten) | F32: 650 | G32: 0
E33: Bosuien | F33: 300 | G33: 0
E34: Braak | F34: 0 | G34: 0
E35: Broccoli | F35: 1150 | G35: 30
E36: Brouwgerst (excl. stro) | F36: 1310 | G36: 0
E37: Brouwgerst (incl. stro) | F37: 1940 | G37: -25
E38: Bupleurum | F38: 0 | G38: 0
E39: Campanula | F39: 0 | G39: 0
E40: Carthamus | F40: 0 | G40: 0
E41: CCM maïs | F41: 1900 | G41: -25
E42: Chelone | F42: 0 | G42: 0
E43: Chinese kool | F43: 450 | G43: 20
E44: Chrysant | F44: 0 | G44: 0
E45: Cichorei | F45: 700 | G45: 0
E46: Conserven-erwten (excl. gewasresten) | F46: 170 | G46: 30
E47: Conserven-erwten (incl. gewasresten) | F47: 1000 | G47: 30
E48: Consumptieaardappelen | F48: 875 | G48: 0
E49: Courgettes | F49: 250 | G49: 0
E50: Crocussen | F50: 150 | G50: 0
E51: Dahlia (incl. gewasresten) | F51: 750 | G51: 0
E52: Delphinium (ridderspoor) | F52: 0 | G52: 0
E53: Dicentra | F53: 0 | G53: 0
E54: Droogbloemen | F54: 0 | G54: 0
E55: Duizendschoon (Dianthus barbatus) | F55: 0 | G55: 0
E56: Echinops (kogeldistel) | F56: 0 | G56: 0
E57: Eremurus (naald van Cleopatra) | F57: 0 | G57: 0
E58: Erwten (overige) (excl. gewasresten) | F58: 170 | G58: 30
E59: Erwten (overige) (incl. gewasresten) | F59: 1000 | G59: 30
E60: Gentiaan | F60: 0 | G60: 0
E61: Gladiolen kralen | F61: 1000 | G61: 0
E62: Gladiolen pitten | F62: 1900 | G62: 0
E63: Graanplantsilage | F63: 750 | G63: 0
E64: Grasland (inzaai najaar) | F64: 450 | G64: 25
E65: Grasland (jaar 1) | F65: 1175 | G65: 25
E66: Grasland (jaar 2 of ouder) | F66: 1400 | G66: 25
E67: Graszaad | F67: 2300 | G67: 0
E68: Gypsophila (gipskruid) | F68: 0 | G68: 0
E69: Haver (excl. stro) | F69: 1570 | G69: 0
E70: Haver (incl. stro) | F70: 2470 | G70: -25
E71: Helenium | F71: 0 | G71: 0
E72: Helianthus (zonnebloem) | F72: 0 | G72: 0
E73: Helleborus (kerstroos) | F73: 0 | G73: 0
E74: Hennep | F74: 660 | G74: 0
E75: Hortensia | F75: 0 | G75: 0
E76: Hosta | F76: 0 | G76: 0
E77: Hyacinten | F77: 350 | G77: 0
E78: Hypericum | F78: 0 | G78: 0
E79: Irissen | F79: 400 | G79: 0
E80: Japanse uien | F80: 300 | G80: 0
E81: Karwij (incl. stro) | F81: 1275 | G81: 0
E82: Kervel | F82: 300 | G82: 0
E83: Klaver | F83: 1200 | G83: 30
E84: Knoflook | F84: 300 | G84: 0
E85: Knolselderij (excl. loof) | F85: 400 | G85: 0
E86: Knolselderij (incl. loof) | F86: 1000 | G86: 0
E87: Knolvenkel (excl. loof) | F87: 400 | G87: 0
E88: Knolvenkel (incl. loof) | F88: 750 | G88: 20
E89: Kool (overige) | F89: 1150 | G89: 20
E90: Koolraap (excl. loof) | F90: 550 | G90: 0
E91: Koolraap (incl. loof) | F91: 1150 | G91: 20
E92: Koolrabi – Zaadteelt | F92: 300 | G92: 20
E93: Koolrabi (excl. bladresten) | F93: 300 | G93: 0
E94: Koolrabi (incl. bladresten) | F94: 550 | G94: 20
E95: Koolzaad | F95: 975 | G95: 0
E96: Korrelmaïs | F96: 2200 | G96: -25
E97: Kruiden | F97: 300 | G97: 0
E98: Landbouwerwten | F98: 200 | G98: 30
E99: Lathyrus | F99: 0 | G99: 0
E100: Lelies | F100: 450 | G100: 0
E101: Limonium | F101: 0 | G101: 0
E102: Luzerne (jaar 1) | F102: 1350 | G102: 75
E103: Luzerne (jaar 2) | F103: 2050 | G103: 75
E104: Lysimachia | F104: 0 | G104: 0
E105: Matthiola (violier) | F105: 0 | G105: 0
E106: Narcis grofbollig | F106: 700 | G106: 0
E107: Narcis kleinbollig | F107: 200 | G107: 0
E108: Narcissen | F108: 500 | G108: 0
E109: Nigella | F109: 0 | G109: 0
E110: Ornithogalum (vogelmelk) | F110: 0 | G110: 0
E111: Overige akkerbouwgewassen | F111: 0 | G111: 0
E112: Overige bloembollen | F112: 0 | G112: 0
E113: Overige bloemgewassen | F113: 0 | G113: 0
E114: Overige groentegewassen | F114: 0 | G114: 0
E115: Paksoi | F115: 450 | G115: 0
E116: Papaver | F116: 0 | G116: 0
E117: Parijse wortelen | F117: 700 | G117: 0
E118: Peterselie | F118: 250 | G118: 0
E119: Peulen | F119: 170 | G119: 20
E120: Phlox | F120: 0 | G120: 0
E121: Physalis (lampionplant) | F121: 0 | G121: 0
E122: Picklers uien | F122: 300 | G122: 0
E123: Pioen/Paeonia | F123: 0 | G123: 0
E124: Plantuien | F124: 300 | G124: 0
E125: Pompoen | F125: 350 | G125: 0
E126: Pootaardappelen | F126: 875 | G126: 0
E127: Prei (excl. bladresten) | F127: 100 | G127: 0
E128: Prei (incl. bladresten) | F128: 450 | G128: 20
E129: Raapstelen | F129: 0 | G129: 0
E130: Rabarber | F130: 0 | G130: 0
E131: Radicchio rosso | F131: 300 | G131: 0
E132: Radijs | F132: 0 | G132: 0
E133: Rettich | F133: 700 | G133: 0
E134: Rode bieten (kroten) | F134: 600 | G134: 20
E135: Rode kool (excl. oogstresten) | F135: 1000 | G135: 0
E136: Rode kool (incl. oogstresten) | F136: 1150 | G136: 30
E137: Roodlof | F137: 300 | G137: 0
E138: Rudbeckia | F138: 0 | G138: 0
E139: Savooiekool (excl. oogstresten) | F139: 1000 | G139: 0
E140: Savooiekool (incl. oogstresten) | F140: 1440 | G140: 20
E141: Scabiosa (duifkruid) | F141: 0 | G141: 0
E142: Schorseneren | F142: 600 | G142: 0
E143: Sjalotten | F143: 500 | G143: 0
E144: Sla (krop) | F144: 300 | G144: 0
E145: Sluitkool | F145: 1150 | G145: 30
E146: Snijmaïs continuteelt | F146: 660 | G146: 0
E147: Snijmaïs vruchtwisseling | F147: 660 | G147: 0
E148: Solidago (gulden roede) | F148: 0 | G148: 0
E149: Spitskool (excl. oogstresten) | F149: 1000 | G149: 0
E150: Spitskool (incl. oogstresten) | F150: 1150 | G150: 20
E151: Spruitkool (excl. stammen) | F151: 1300 | G151: 0
E152: Spruitkool (incl. stammen) | F152: 2000 | G152: 40
E153: Stambonen | F153: 650 | G153: 30
E154: Stamslabonen (incl. stro) | F154: 650 | G154: 20
E155: Stamsnijbonen (excl. oogstresten) | F155: 170 | G155: 20
E156: Stamsnijbonen (incl. oogstresten) | F156: 650 | G156: 20
E157: Stoksperciebonen | F157: 650 | G157: 20
E158: Suikerbieten (excl. kop + bladresten) | F158: 375 | G158: 0
E159: Suikerbieten (incl. kop + bladresten) | F159: 1275 | G159: 15
E160: Triticale (excl. stro) | F160: 1600 | G160: 0
E161: Triticale (incl. stro) | F161: 2530 | G161: -25
E162: Tuinbonen | F162: 650 | G162: 20
E163: Tulpen | F163: 500 | G163: 0
E164: Veldbonen (excl. oogstresten) | F164: 170 | G164: 20
E165: Veldbonen (incl. oogstresten) | F165: 1000 | G165: 20
E166: Veronica | F166: 0 | G166: 0
E167: Vlas | F167: 100 | G167: 0
E168: Voederbieten (excl. kop + bladresten) | F168: 375 | G168: 0
E169: Voederbieten (incl. kop + bladrestren) | F169: 1275 | G169: 25
E170: Waspeen | F170: 700 | G170: 0
E171: Wikken | F171: 645 | G171: 20
E172: Wintergerst (excl. stro) | F172: 1570 | G172: 0
E173: Wintergerst (incl. stro) | F173: 2350 | G173: -25
E174: Winterrogge (excl. stro) | F174: 1500 | G174: 0
E175: Winterrogge (incl. stro) | F175: 2520 | G175: -25
E176: Wintertarwe (excl. stro) | F176: 1640 | G176: 0
E177: Wintertarwe (incl. stro) | F177: 2630 | G177: -25
E178: Winterwortelen | F178: 700 | G178: 0
E179: Witlof | F179: 600 | G179: 0
E180: Witte kool (excl. gewasresten) | F180: 1000 | G180: 0
E181: Witte kool (incl. gewasresten) | F181: 1150 | G181: 30
E182: Wortels (overige) | F182: 100 | G182: 0
E183: Yssla | F183: 450 | G183: 0
E184: Zaadbieten (excl. gewasresten) | F184: 450 | G184: 0
E185: Zaaigoed bloemen | F185: 0 | G185: 0
E186: Zaaiuien | F186: 300 | G186: 0
E187: Zantedeschia (calla of aronskelk) | F187: 0 | G187: 0
E188: Zetmeelaardappelen | F188: 875 | G188: 0
E189: Zilveruien | F189: 300 | G189: 0
E190: Zomergerst (excl. stro) | F190: 1310 | G190: 0
E191: Zomergerst (incl. stro) | F191: 1940 | G191: -25
E192: Zomerrogge (excl. stro) | F192: 1310 | G192: 0
E193: Zomerrogge (incl. stro) | F193: 1940 | G193: -25
E194: Zomertarwe (excl. stro) | F194: 1630 | G194: 0
E195: Zomertarwe (incl. stro) | F195: 2590 | G195: -25
E196: Zomerwortelen | F196: 700 | G196: 0
E197: Zwarte braak | F197: 0 | G197: 0
E199: bron: praktijkgids bemesting NMI, BLGG | G199: bron: Kennisakker Adviesbasis voor bemesting 2012
G200: bieten kop + blad gesteld op 15 kg N omdat koppen niet meer achterblijven op het veld.
